Workbook

Sheet FT140-61 12t
A1: Calculate impedance of ferrite cored inductor
A3: Reference:
A4: A method for estimating the impedance of a ferrite cored toroidal inductor at RF
A6: Inputs:
A7: Al (nH for 1t) | B7: 140
A8: N | B8: 12
A9: Cs (pF) | B9: 1.3
A11: Constants:
A12: Mix | B12: =Mix!B1 -> #61
A13: µi | B13: =Mix!B2 -> 125
A15: Calculated values:
A16: 2*pi*N^2*Al | B16: =2*PI()*$B$8^2*$B$7*0.000000001 -> 0.0001266690158
A18: f (MHz) | B18: 1 | C18: =B18+1 -> 2 | D18: =C18+1 -> 3 | E18: 4 | F18: 5 | G18: 6 | H18: 7 | I18: 8 | J18: 9 | K18: 10 | L18: 11 | M18: 12 | N18: 13 | O18: 14 | P18: 15 | Q18: 16 | R18: 17 | S18: 18 | T18: 19 | U18: 20 | V18: 21 | W18: 22 | X18: 23 | Y18: 24 | Z18: 25 | AA18: 26 | AB18: 27 | AC18: 28 | AD18: 29 | AE18: 30
A19: µ'' | B19: =csinterpolate(CSTableU2,'FT140-61 12t'!B18*1000000) -> 0.62 | C19: =csinterpolate(CSTableU2,'FT140-61 12t'!C18*1000000) -> 0.758194311 | D19: =csinterpolate(CSTableU2,'FT140-61 12t'!D18*1000000) -> 0.7788709119 | E19: =csinterpolate(CSTableU2,'FT140-61 12t'!E18*1000000) -> 0.8351114376 | F19: =csinterpolate(CSTableU2,'FT140-61 12t'!F18*1000000) -> 0.93 | G19: =csinterpolate(CSTableU2,'FT140-61 12t'!G18*1000000) -> 1.036969921 | H19: =csinterpolate(CSTableU2,'FT140-61 12t'!H18*1000000) -> 1.159470753 | I19: =csinterpolate(CSTableU2,'FT140-61 12t'!I18*1000000) -> 1.392643692 | J19: =csinterpolate(CSTableU2,'FT140-61 12t'!J18*1000000) -> 1.633103561 | K19: =csinterpolate(CSTableU2,'FT140-61 12t'!K18*1000000) -> 2.02 | L19: =csinterpolate(CSTableU2,'FT140-61 12t'!L18*1000000) -> 2.509601023 | M19: =csinterpolate(CSTableU2,'FT140-61 12t'!M18*1000000) -> 3.182775641 | N19: =csinterpolate(CSTableU2,'FT140-61 12t'!N18*1000000) -> 4.186258852 | O19: =csinterpolate(CSTableU2,'FT140-61 12t'!O18*1000000) -> 5.569980087 | P19: =csinterpolate(CSTableU2,'FT140-61 12t'!P18*1000000) -> 7.559670889 | Q19: =csinterpolate(CSTableU2,'FT140-61 12t'!Q18*1000000) -> 10.36476207 | R19: =csinterpolate(CSTableU2,'FT140-61 12t'!R18*1000000) -> 14.07154078 | S19: =csinterpolate(CSTableU2,'FT140-61 12t'!S18*1000000) -> 19.17655116 | T19: =csinterpolate(CSTableU2,'FT140-61 12t'!T18*1000000) -> 25.39136867 | U19: =csinterpolate(CSTableU2,'FT140-61 12t'!U18*1000000) -> 32.08965452 | V19: =csinterpolate(CSTableU2,'FT140-61 12t'!V18*1000000) -> 39.79460805 | W19: =csinterpolate(CSTableU2,'FT140-61 12t'!W18*1000000) -> 47.42194392 | X19: =csinterpolate(CSTableU2,'FT140-61 12t'!X18*1000000) -> 54.05909787 | Y19: =csinterpolate(CSTableU2,'FT140-61 12t'!Y18*1000000) -> 59.96478192 | Z19: =csinterpolate(CSTableU2,'FT140-61 12t'!Z18*1000000) -> 65.05078817 | AA19: =csinterpolate(CSTableU2,'FT140-61 12t'!AA18*1000000) -> 69.19723667 | AB19: =csinterpolate(CSTableU2,'FT140-61 12t'!AB18*1000000) -> 72.53648529 | AC19: =csinterpolate(CSTableU2,'FT140-61 12t'!AC18*1000000) -> 75.17052821 | AD19: =csinterpolate(CSTableU2,'FT140-61 12t'!AD18*1000000) -> 77.09502519 | AE19: =csinterpolate(CSTableU2,'FT140-61 12t'!AE18*1000000) -> 78.41918291
A20: µ' | B20: =csinterpolate(CSTableU1,'FT140-61 12t'!B18*1000000) -> 118.57 | C20: =csinterpolate(CSTableU1,'FT140-61 12t'!C18*1000000) -> 118.5396803 | D20: =csinterpolate(CSTableU1,'FT140-61 12t'!D18*1000000) -> 118.7454853 | E20: =csinterpolate(CSTableU1,'FT140-61 12t'!E18*1000000) -> 119.132245 | F20: =csinterpolate(CSTableU1,'FT140-61 12t'!F18*1000000) -> 119.69 | G20: =csinterpolate(CSTableU1,'FT140-61 12t'!G18*1000000) -> 120.4198067 | H20: =csinterpolate(CSTableU1,'FT140-61 12t'!H18*1000000) -> 121.368694 | I20: =csinterpolate(CSTableU1,'FT140-61 12t'!I18*1000000) -> 122.503407 | J20: =csinterpolate(CSTableU1,'FT140-61 12t'!J18*1000000) -> 123.8652264 | K20: =csinterpolate(CSTableU1,'FT140-61 12t'!K18*1000000) -> 125.48 | L20: =csinterpolate(CSTableU1,'FT140-61 12t'!L18*1000000) -> 127.4020954 | M20: =csinterpolate(CSTableU1,'FT140-61 12t'!M18*1000000) -> 129.5264894 | N20: =csinterpolate(CSTableU1,'FT140-61 12t'!N18*1000000) -> 132.2910455 | O20: =csinterpolate(CSTableU1,'FT140-61 12t'!O18*1000000) -> 135.1219891 | P20: =csinterpolate(CSTableU1,'FT140-61 12t'!P18*1000000) -> 138.3447211 | Q20: =csinterpolate(CSTableU1,'FT140-61 12t'!Q18*1000000) -> 141.865299 | R20: =csinterpolate(CSTableU1,'FT140-61 12t'!R18*1000000) -> 145.371705 | S20: =csinterpolate(CSTableU1,'FT140-61 12t'!S18*1000000) -> 148.6956574 | T20: =csinterpolate(CSTableU1,'FT140-61 12t'!T18*1000000) -> 151.3257257 | U20: =csinterpolate(CSTableU1,'FT140-61 12t'!U18*1000000) -> 152.6542534 | V20: =csinterpolate(CSTableU1,'FT140-61 12t'!V18*1000000) -> 152.5522168 | W20: =csinterpolate(CSTableU1,'FT140-61 12t'!W18*1000000) -> 151.0175455 | X20: =csinterpolate(CSTableU1,'FT140-61 12t'!X18*1000000) -> 148.2006761 | Y20: =csinterpolate(CSTableU1,'FT140-61 12t'!Y18*1000000) -> 144.4061007 | Z20: =csinterpolate(CSTableU1,'FT140-61 12t'!Z18*1000000) -> 139.9514163 | AA20: =csinterpolate(CSTableU1,'FT140-61 12t'!AA18*1000000) -> 135.1139856 | AB20: =csinterpolate(CSTableU1,'FT140-61 12t'!AB18*1000000) -> 130.0795701 | AC20: =csinterpolate(CSTableU1,'FT140-61 12t'!AC18*1000000) -> 125.0599136 | AD20: =csinterpolate(CSTableU1,'FT140-61 12t'!AD18*1000000) -> 120.32684 | AE20: =csinterpolate(CSTableU1,'FT140-61 12t'!AE18*1000000) -> 115.9602593
A21: Rl | B21: =B19/$B$13*$B$16*B18*1000000 -> 0.6282783183 | C21: 1.536635634 | D21: 2.367811484 | E21: 3.385047804 | F21: 4.712087387 | G21: 6.304894049 | H21: 8.22466507 | I21: 11.28990757 | J21: 14.89418069 | K21: 20.46971295 | L21: 27.97420487 | M21: 38.70326957 | N21: 55.14800602 | O21: 79.02091631 | P21: 114.9091286 | Q21: 168.050459 | R21: 242.4102381 | S21: 349.7867801 | T21: 488.8775512 | U21: 650.3623928 | V21: 846.8449644 | W21: 1057.212809 | X21: 1259.960741 | Y21: 1458.370542 | Z21: 1647.983863 | AA21: 1823.15034 | AB21: 1984.635043 | AC21: 2132.878009 | AD21: 2265.607824 | AE21: 2383.987372
A22: Xl | B22: =B20/$B$13*$B$16*B18*1000000 -> 120.1531616 | C22: 240.2448742 | D22: 360.9929702 | E22: 482.8916553 | F22: 606.44058 | G22: 732.1660028 | H22: 860.9245689 | I22: 993.1127036 | J22: 1129.671815 | K22: 1271.554248 | L22: 1420.135027 | M22: 1575.071321 | N22: 1742.74636 | O22: 1916.96617 | P22: 2102.87876 | Q22: 2300.152038 | R22: 2504.316348 | S22: 2712.259091 | T22: 2913.578672 | U22: 3093.850245 | V22: 3246.371378 | W22: 3366.746918 | X22: 3454.127816 | Y22: 3512.021502 | Z22: 3545.501632 | AA22: 3559.869159 | AB22: 3559.043041 | AC22: 3548.432423 | AD22: 3536.070317 | AE22: 3525.257261
A23: Yl | B23: =IMDIV(1,COMPLEX(B21,B22)) -> 0.0000435180866147324-0.00832248311275616i | C23: 0.0000266222570648372-0.00416224943311437i | D23: 0.0000181689968227168-0.00277001787222364i | E23: 0.0000145159032434344-0.00207075614595789i | F23: 0.0000128118134927241-0.00164886662037005i | G23: 0.0000117605185445121-0.00136570920718242i | H23: 0.0000110955384677246-0.00116143594804469i | I23: 0.0000114455637594974-0.00100680494466553i | J23: 0.0000116690780294181-0.000885058992543996i | K23: 0.0000126569607342072-0.000786235362835803i | L23: 0.0000138653229500603-0.000703885271237271i | M23: 0.0000155913980002254-0.000634508766933867i | N23: 0.000018139561208028-0.00057323295148647i | O23: 0.0000214672205892397-0.000520772696066163i | P23: 0.0000259078407262009-0.000474122888836387i | Q23: 0.0000315947252110024-0.000432445540697545i | R23: 0.0000382932597024939-0.000395603902997193i | S23: 0.0000467710661111092-0.000362664504463614i | T23: 0.0000560129243245827-0.000333821958589511i | U23: 0.0000650695510981113-0.000309543492768159i | V23: 0.0000752344912378549-0.000288410640971611i | W23: 0.000084898390739063-0.000270363159443182i | X23: 0.0000932027027781336-0.000255511174078065i | Y23: 0.000100847552518507-0.000242859247778711i | Z23: 0.000107806962055197-0.000231937805036452i | AA23: 0.00011397150275388-0.000222539868916347i | AB23: 0.000119516271095312-0.000214328349338101i | AC23: 0.000124434694112143-0.000207019858293065i | AD23: 0.000128459324146813-0.000200494188939783i | AE23: 0.000131633214682593-0.00019464907879687i
A24: Yc | B24: =COMPLEX(0,2*PI()*B18*1000000*$B$9*0.000000000001) -> 8.16814089933346E-06i | C24: 0.0000163362817986669i | D24: 0.0000245044226980004i | E24: 0.0000326725635973338i | F24: 0.0000408407044966673i | G24: 0.0000490088453960008i | H24: 0.0000571769862953342i | I24: 0.0000653451271946677i | J24: 0.0000735132680940012i | K24: 0.0000816814089933346i | L24: 0.0000898495498926681i | M24: 0.0000980176907920015i | N24: 0.000106185831691335i | O24: 0.000114353972590668i | P24: 0.000122522113490002i | Q24: 0.000130690254389335i | R24: 0.000138858395288669i | S24: 0.000147026536188002i | T24: 0.000155194677087336i | U24: 0.000163362817986669i | V24: 0.000171530958886003i | W24: 0.000179699099785336i | X24: 0.00018786724068467i | Y24: 0.000196035381584003i | Z24: 0.000204203522483337i | AA24: 0.00021237166338267i | AB24: 0.000220539804282003i | AC24: 0.000228707945181337i | AD24: 0.00023687608608067i | AE24: 0.000245044226980004i
A25: Z | B25: =IMDIV(1,IMSUM(B23,B24)) -> 0.629513355977089+120.271195903458i | C25: 1.54876870705194+241.191441254386i | D25: 2.41026491388873+364.21464556191i | E25: 3.49444374516254+490.632123062656i | F25: 4.95446713809886+621.841050209671i | G25: 6.78293906924686+759.4136510775i | H25: 9.0983507167308+905.493261576611i | I25: 12.9112838311549+1062.02325847926i | J25: 17.7141686198429+1231.96175133784i | K25: 25.4894688407076+1418.8798108956i | L25: 36.7554151029173+1627.73978704491i | M25: 54.1244389821316+1862.39094882183i | N25: 83.0330060863549+2137.88668291497i | O25: 129.604001229391+2453.67081956422i | P25: 208.439455857945+2828.77585465143i | Q25: 343.217683602267+3278.0076322796i | R25: 568.27884942458+3810.14943227796i | S25: 960.642688858355+4429.04245911627i | T25: 1598.30729527824+5097.06091233923i | U25: 2541.497773617+5709.55006194551i | V25: 3893.9053687392+6049.33208268554i | W25: 5502.98127156659+5876.70293816018i | X25: 7027.56535864749+5100.41177850486i | Y25: 8157.40296576122+3787.51031062476i | Z25: 8700.05148978791+2238.16423025525i | AA25: 8704.83536369542+776.620058314198i | AB25: 8344.52260740217-433.678408213685i | AC25: 7799.41318015092-1359.3825414655i | AD25: 7206.51615138028-2041.00972120958i | AE25: 6625.73039905233-2536.62927010391i
A26: R | B26: =IMREAL(B25) -> 0.629513356 | C26: 1.548768707 | D26: 2.410264914 | E26: 3.494443745 | F26: 4.954467138 | G26: 6.782939069 | H26: 9.098350717 | I26: 12.91128383 | J26: 17.71416862 | K26: 25.48946884 | L26: 36.7554151 | M26: 54.12443898 | N26: 83.03300609 | O26: 129.6040012 | P26: 208.4394559 | Q26: 343.2176836 | R26: 568.2788494 | S26: 960.6426889 | T26: 1598.307295 | U26: 2541.497774 | V26: 3893.905369 | W26: 5502.981272 | X26: 7027.565359 | Y26: 8157.402966 | Z26: 8700.05149 | AA26: 8704.835364 | AB26: 8344.522607 | AC26: 7799.41318 | AD26: 7206.516151 | AE26: 6625.730399
A27: X | B27: =IMAGINARY(B25) -> 120.2711959 | C27: 241.1914413 | D27: 364.2146456 | E27: 490.6321231 | F27: 621.8410502 | G27: 759.4136511 | H27: 905.4932616 | I27: 1062.023258 | J27: 1231.961751 | K27: 1418.879811 | L27: 1627.739787 | M27: 1862.390949 | N27: 2137.886683 | O27: 2453.67082 | P27: 2828.775855 | Q27: 3278.007632 | R27: 3810.149432 | S27: 4429.042459 | T27: 5097.060912 | U27: 5709.550062 | V27: 6049.332083 | W27: 5876.702938 | X27: 5100.411779 | Y27: 3787.510311 | Z27: 2238.16423 | AA27: 776.6200583 | AB27: -433.6784082 | AC27: -1359.382541 | AD27: -2041.009721 | AE27: -2536.62927
A28: |Z| | B28: =IMABS(B25) -> 120.2728434 | C28: 241.1964138 | D28: 364.2226207 | E28: 490.6445672 | F28: 621.8607871 | G28: 759.4439424 | H28: 905.5389703 | I28: 1062.101738 | J28: 1232.089099 | K28: 1419.108745 | L28: 1628.154715 | M28: 1863.17726 | N28: 2139.498527 | O28: 2457.091306 | P28: 2836.44493 | Q28: 3295.92664 | R28: 3852.295361 | S28: 4532.025097 | T28: 5341.780242 | U28: 6249.653818 | V28: 7194.22808 | W28: 8050.99002 | X28: 8683.367733 | Y28: 8993.80106 | Z28: 8983.333181 | AA28: 8739.410588 | AB28: 8355.784494 | AC28: 7916.992286 | AD28: 7489.966337 | AE28: 7094.701641
A32: Module | B32: Version | C32: Date
A33: CubicSpline | B33: =CubicSpline_version("v") -> 1.04 | C33: =CubicSpline_version("d") -> 2014-03-07
A35: Copyright: Owen Duffy 2010. All rights reserved.

Sheet FT140-61 4t
A1: Calculate impedance of ferrite cored inductor
A3: Reference:
A4: A method for estimating the impedance of a ferrite cored toroidal inductor at RF
A6: Inputs:
A7: Al (nH for 1t) | B7: 140
A8: N | B8: 4
A9: Cs (pF) | B9: 1.3
A11: Constants:
A12: Mix | B12: =Mix!B1 -> #61
A13: µi | B13: =Mix!B2 -> 125
A15: Calculated values:
A16: 2*pi*N^2*Al | B16: =2*PI()*$B$8^2*$B$7*0.000000001 -> 1.407433509e-05
A18: f (MHz) | B18: 50 | C18: =B18+5 -> 55 | D18: =C18+5 -> 60 | E18: 65 | F18: 70 | G18: 75 | H18: 80 | I18: 85 | J18: 90 | K18: 95 | L18: 100 | M18: 105 | N18: 110 | O18: 115 | P18: 120 | Q18: 125 | R18: 130 | S18: 135 | T18: 140 | U18: 145 | V18: 150 | W18: 155 | X18: 160 | Y18: 165 | Z18: 170 | AA18: 175 | AB18: 180 | AC18: 185 | AD18: 190 | AE18: 195
A19: µ'' | B19: =csinterpolate(CSTableU2,'FT140-61 4t'!B18*1000000) -> 73.15 | C19: =csinterpolate(CSTableU2,'FT140-61 4t'!C18*1000000) -> 69.90070366 | D19: =csinterpolate(CSTableU2,'FT140-61 4t'!D18*1000000) -> 66.89232642 | E19: =csinterpolate(CSTableU2,'FT140-61 4t'!E18*1000000) -> 64.196133 | F19: =csinterpolate(CSTableU2,'FT140-61 4t'!F18*1000000) -> 61.7002814 | G19: =csinterpolate(CSTableU2,'FT140-61 4t'!G18*1000000) -> 59.54310615 | H19: =csinterpolate(CSTableU2,'FT140-61 4t'!H18*1000000) -> 57.57973921 | I19: =csinterpolate(CSTableU2,'FT140-61 4t'!I18*1000000) -> 55.79301765 | J19: =csinterpolate(CSTableU2,'FT140-61 4t'!J18*1000000) -> 54.20552534 | K19: =csinterpolate(CSTableU2,'FT140-61 4t'!K18*1000000) -> 52.77377266 | L19: =csinterpolate(CSTableU2,'FT140-61 4t'!L18*1000000) -> 51.43 | M19: =csinterpolate(CSTableU2,'FT140-61 4t'!M18*1000000) -> 50.1777721 | N19: =csinterpolate(CSTableU2,'FT140-61 4t'!N18*1000000) -> 49.09012062 | O19: =csinterpolate(CSTableU2,'FT140-61 4t'!O18*1000000) -> 48.1154741 | P19: =csinterpolate(CSTableU2,'FT140-61 4t'!P18*1000000) -> 47.11638348 | Q19: =csinterpolate(CSTableU2,'FT140-61 4t'!Q18*1000000) -> 46.12878076 | R19: =csinterpolate(CSTableU2,'FT140-61 4t'!R18*1000000) -> 45.2280812 | S19: =csinterpolate(CSTableU2,'FT140-61 4t'!S18*1000000) -> 44.40194943 | T19: =csinterpolate(CSTableU2,'FT140-61 4t'!T18*1000000) -> 43.62879959 | U19: =csinterpolate(CSTableU2,'FT140-61 4t'!U18*1000000) -> 42.88979399 | V19: =csinterpolate(CSTableU2,'FT140-61 4t'!V18*1000000) -> 42.17626535 | W19: =csinterpolate(CSTableU2,'FT140-61 4t'!W18*1000000) -> 41.48729508 | X19: =csinterpolate(CSTableU2,'FT140-61 4t'!X18*1000000) -> 40.82050504 | Y19: =csinterpolate(CSTableU2,'FT140-61 4t'!Y18*1000000) -> 40.17136058 | Z19: =csinterpolate(CSTableU2,'FT140-61 4t'!Z18*1000000) -> 39.53561698 | AA19: =csinterpolate(CSTableU2,'FT140-61 4t'!AA18*1000000) -> 38.91 | AB19: =csinterpolate(CSTableU2,'FT140-61 4t'!AB18*1000000) -> 38.29490802 | AC19: =csinterpolate(CSTableU2,'FT140-61 4t'!AC18*1000000) -> 37.70491384 | AD19: =csinterpolate(CSTableU2,'FT140-61 4t'!AD18*1000000) -> 37.15668464 | AE19: =csinterpolate(CSTableU2,'FT140-61 4t'!AE18*1000000) -> 36.64527951
A20: µ' | B20: =csinterpolate(CSTableU1,'FT140-61 4t'!B18*1000000) -> 64.33 | C20: =csinterpolate(CSTableU1,'FT140-61 4t'!C18*1000000) -> 58.19568703 | D20: =csinterpolate(CSTableU1,'FT140-61 4t'!D18*1000000) -> 53.29832946 | E20: =csinterpolate(CSTableU1,'FT140-61 4t'!E18*1000000) -> 49.21728237 | F20: =csinterpolate(CSTableU1,'FT140-61 4t'!F18*1000000) -> 45.80675305 | G20: =csinterpolate(CSTableU1,'FT140-61 4t'!G18*1000000) -> 42.9191926 | H20: =csinterpolate(CSTableU1,'FT140-61 4t'!H18*1000000) -> 40.42923374 | I20: =csinterpolate(CSTableU1,'FT140-61 4t'!I18*1000000) -> 38.25348164 | J20: =csinterpolate(CSTableU1,'FT140-61 4t'!J18*1000000) -> 36.28174309 | K20: =csinterpolate(CSTableU1,'FT140-61 4t'!K18*1000000) -> 34.49773078 | L20: =csinterpolate(CSTableU1,'FT140-61 4t'!L18*1000000) -> 32.9 | M20: =csinterpolate(CSTableU1,'FT140-61 4t'!M18*1000000) -> 31.36749828 | N20: =csinterpolate(CSTableU1,'FT140-61 4t'!N18*1000000) -> 30.02436415 | O20: =csinterpolate(CSTableU1,'FT140-61 4t'!O18*1000000) -> 28.83707598 | P20: =csinterpolate(CSTableU1,'FT140-61 4t'!P18*1000000) -> 27.62582081 | Q20: =csinterpolate(CSTableU1,'FT140-61 4t'!Q18*1000000) -> 26.42787038 | R20: =csinterpolate(CSTableU1,'FT140-61 4t'!R18*1000000) -> 25.33238477 | S20: =csinterpolate(CSTableU1,'FT140-61 4t'!S18*1000000) -> 24.32384624 | T20: =csinterpolate(CSTableU1,'FT140-61 4t'!T18*1000000) -> 23.38631503 | U20: =csinterpolate(CSTableU1,'FT140-61 4t'!U18*1000000) -> 22.51367446 | V20: =csinterpolate(CSTableU1,'FT140-61 4t'!V18*1000000) -> 21.68663982 | W20: =csinterpolate(CSTableU1,'FT140-61 4t'!W18*1000000) -> 20.87617712 | X20: =csinterpolate(CSTableU1,'FT140-61 4t'!X18*1000000) -> 20.07623831 | Y20: =csinterpolate(CSTableU1,'FT140-61 4t'!Y18*1000000) -> 19.31091253 | Z20: =csinterpolate(CSTableU1,'FT140-61 4t'!Z18*1000000) -> 18.59209958 | AA20: =csinterpolate(CSTableU1,'FT140-61 4t'!AA18*1000000) -> 17.9 | AB20: =csinterpolate(CSTableU1,'FT140-61 4t'!AB18*1000000) -> 17.21892994 | AC20: =csinterpolate(CSTableU1,'FT140-61 4t'!AC18*1000000) -> 16.56682869 | AD20: =csinterpolate(CSTableU1,'FT140-61 4t'!AD18*1000000) -> 15.96811056 | AE20: =csinterpolate(CSTableU1,'FT140-61 4t'!AE18*1000000) -> 15.41833553
A21: Rl | B21: =B19/$B$13*$B$16*B18*1000000 -> 411.8150447 | C21: 432.8746075 | D21: 451.9032081 | E21: 469.8293014 | F21: 486.2986438 | G21: 502.8177769 | H21: 518.6537881 | I21: 533.9697457 | J21: 549.2928436 | K21: 564.4943778 | L21: 579.0744429 | M21: 593.2237739 | N21: 608.0015103 | O21: 623.0178409 | P21: 636.6064985 | Q21: 649.2319177 | R21: 662.0173771 | S21: 674.922148 | T21: 687.7319063 | U21: 700.2285857 | V21: 712.3234696 | W21: 724.0435551 | X21: 735.3874771 | Y21: 746.3084504 | Z21: 756.755029 | AA21: 766.6853296 | AB21: 776.1245294 | AC21: 785.3939559 | AD21: 794.8925582 | AE21: 804.5823913
A22: Xl | B22: =B20/$B$13*$B$16*B18*1000000 -> 362.1607905 | C22: 360.3888639 | D22: 360.0665033 | E22: 360.2042726 | F22: 361.0317714 | G22: 362.435459 | H22: 364.1693332 | I22: 366.1067768 | J22: 367.6618151 | K22: 369.0047933 | L22: 370.4364995 | M22: 370.8404126 | N22: 371.8642065 | O22: 373.3936567 | P22: 373.2624569 | Q22: 371.9547035 | R22: 370.7979307 | S22: 369.7293196 | T22: 368.6444544 | U22: 367.5633982 | V22: 366.2700429 | W22: 364.334707 | X22: 361.6764228 | Y22: 358.760495 | Z22: 355.8731577 | AA22: 352.7028373 | AB22: 348.9767854 | AC22: 345.0873055 | AD22: 341.6056188 | AE22: 338.5244003
A23: Yl | B23: =IMDIV(1,COMPLEX(B21,B22)) -> 0.0013692841608326-0.00120418386967001i | C23: 0.00136441355572515-0.00113593969887923i | D23: 0.00135355315856635-0.00107848128551858i | E23: 0.00134050540074341-0.00102772596628913i | F23: 0.00132567737537017-0.000984192855975715i | G23: 0.00130879014800086-0.000943387405680323i | H23: 0.00129140089012808-0.000906748609118659i | I23: 0.0012739108458249-0.000873434117721169i | J23: 0.00125725694991437-0.000841528116781777i | K23: 0.0012411422406434-0.000811323290338036i | L23: 0.0012254236372063-0.000783908957108445i | M23: 0.00121205324515658-0.000757687647217102i | N23: 0.00119697394864396-0.000732089904458553i | O23: 0.00118091069386589-0.000707755915188939i | P23: 0.00116895893682965-0.000685397471945759i | Q23: 0.00115964839272059-0.000664379957755406i | R23: 0.00114981858213831-0.000644016857699899i | S23: 0.00113964830246248-0.000624311104098i | T23: 0.00112951449639075-0.00060545286821169i | U23: 0.00111960812262953-0.000587703750733295i | V23: 0.00111030171567604-0.000570906721988272i | W23: 0.00110208046549244-0.000554560786638671i | X23: 0.00109497091462321-0.000538525846291396i | Y23: 0.00108841234599058-0.000523214432082278i | Z23: 0.00108212382350636-0.000508881748162774i | AA23: 0.00107649425524796-0.000495226090180891i | AB23: 0.00107176711256876-0.000481909574493777i | AC23: 0.00106721442860936-0.000468913911049623i | AD23: 0.00106191178732674-0.000456357314559691i | AE23: 0.00105594948239644-0.000444285966371272i
A24: Yc | B24: =COMPLEX(0,2*PI()*B18*1000000*$B$9*0.000000000001) -> 0.000408407044966673i | C24: 0.00044924774946334i | D24: 0.000490088453960008i | E24: 0.000530929158456675i | F24: 0.000571769862953342i | G24: 0.00061261056745001i | H24: 0.000653451271946677i | I24: 0.000694291976443344i | J24: 0.000735132680940012i | K24: 0.000775973385436679i | L24: 0.000816814089933346i | M24: 0.000857654794430014i | N24: 0.000898495498926681i | O24: 0.000939336203423348i | P24: 0.000980176907920015i | Q24: 0.00102101761241668i | R24: 0.00106185831691335i | S24: 0.00110269902141002i | T24: 0.00114353972590668i | U24: 0.00118438043040335i | V24: 0.00122522113490002i | W24: 0.00126606183939669i | X24: 0.00130690254389335i | Y24: 0.00134774324839002i | Z24: 0.00138858395288669i | AA24: 0.00142942465738336i | AB24: 0.00147026536188002i | AC24: 0.00151110606637669i | AD24: 0.00155194677087336i | AE24: 0.00159278747537002i
A25: Z | B25: =IMDIV(1,IMSUM(B23,B24)) -> 545.923065537326+317.270100722881i | C25: 584.789555783362+294.317128684276i | D25: 621.377004883576+270.114086805487i | E25: 655.900997002397+243.079603695895i | F25: 687.765643110769+213.966361876317i | G25: 718.190118133189+181.511647904149i | H25: 745.665994118488+146.256063607931i | I25: 769.762208047689+108.246860976458i | J25: 789.726810796203+66.8306731064893i | K25: 805.056354250594+22.9294150429035i | L25: 815.456350568948-21.8966720680801i | M25: 819.471771871556-67.5880004305642i | N25: 819.599596033413-113.942294365126i | O25: 815.444975216883-159.911315377987i | P25: 804.314834394894-202.826177856755i | Q25: 787.81809558888-242.285161324952i | R25: 768.249054102346-279.179960032046i | S25: 746.012421615691-313.152160973255i | T25: 721.577524111406-343.750685602637i | U25: 695.605179476158-370.711305556028i | V25: 668.495125244192-393.952372794625i | W25: 640.440954507494-413.467462339807i | X25: 611.93300078365-429.413285792704i | Y25: 583.758996167309-442.227723612199i | Z25: 556.39964140637-452.319762877768i | AA25: 529.883748663487-459.841412410771i | AB25: 504.234779784409-464.992214219837i | AC25: 479.622979947107-468.377576066707i | AD25: 456.152984830449-470.619505886018i | AE25: 433.817829416086-471.841162878548i
A26: R | B26: =IMREAL(B25) -> 545.9230655 | C26: 584.7895558 | D26: 621.3770049 | E26: 655.900997 | F26: 687.7656431 | G26: 718.1901181 | H26: 745.6659941 | I26: 769.762208 | J26: 789.7268108 | K26: 805.0563543 | L26: 815.4563506 | M26: 819.4717719 | N26: 819.599596 | O26: 815.4449752 | P26: 804.3148344 | Q26: 787.8180956 | R26: 768.2490541 | S26: 746.0124216 | T26: 721.5775241 | U26: 695.6051795 | V26: 668.4951252 | W26: 640.4409545 | X26: 611.9330008 | Y26: 583.7589962 | Z26: 556.3996414 | AA26: 529.8837487 | AB26: 504.2347798 | AC26: 479.6229799 | AD26: 456.1529848 | AE26: 433.8178294
A27: X | B27: =IMAGINARY(B25) -> 317.2701007 | C27: 294.3171287 | D27: 270.1140868 | E27: 243.0796037 | F27: 213.9663619 | G27: 181.5116479 | H27: 146.2560636 | I27: 108.246861 | J27: 66.83067311 | K27: 22.92941504 | L27: -21.89667207 | M27: -67.58800043 | N27: -113.9422944 | O27: -159.9113154 | P27: -202.8261779 | Q27: -242.2851613 | R27: -279.17996 | S27: -313.152161 | T27: -343.7506856 | U27: -370.7113056 | V27: -393.9523728 | W27: -413.4674623 | X27: -429.4132858 | Y27: -442.2277236 | Z27: -452.3197629 | AA27: -459.8414124 | AB27: -464.9922142 | AC27: -468.3775761 | AD27: -470.6195059 | AE27: -471.8411629
A28: |Z| | B28: =IMABS(B25) -> 631.4208662 | C28: 654.6765589 | D28: 677.5477858 | E28: 699.4953978 | F28: 720.2799344 | G28: 740.7722485 | H28: 759.8740757 | I28: 777.335989 | J28: 792.5495408 | K28: 805.382823 | L28: 815.7502828 | M28: 822.2542932 | N28: 827.4819299 | O28: 830.976616 | P28: 829.4943106 | Q28: 824.2326438 | R28: 817.4032415 | S28: 809.0728083 | T28: 799.2738311 | U28: 788.2216933 | V28: 775.9408512 | W28: 762.3122448 | X28: 747.5679016 | Y28: 732.3523231 | Z28: 717.0590832 | AA28: 701.5916987 | AB28: 685.9085015 | AC28: 670.3847825 | AD28: 655.406946 | AE28: 640.9617712
A32: Module | B32: Version | C32: Date
A33: CubicSpline | B33: =CubicSpline_version("v") -> 1.04 | C33: =CubicSpline_version("d") -> 2014-03-07
A35: Copyright: Owen Duffy 2010. All rights reserved.

Sheet FT140-61 4t (3)
A1: Calculate impedance of ferrite cored inductor
A3: Reference:
A4: A method for estimating the impedance of a ferrite cored toroidal inductor at RF
A6: Inputs:
A7: Al (nH for 1t) | B7: 140
A8: N | B8: 2
A9: Cs (pF) | B9: 1.3
A11: Constants:
A12: Mix | B12: =Mix!B1 -> #61
A13: µi | B13: =Mix!B2 -> 125
F14: 1.06
A15: Calculated values:
A16: 2*pi*N^2*Al | B16: =2*PI()*$B$8^2*$B$7*0.000000001 -> 3.518583772e-06
A18: f (MHz) | B18: 100 | C18: =B18*$F$14 -> 106 | D18: =C18*$F$14 -> 112.36 | E18: 119.1016 | F18: 126.247696 | G18: 133.8225578 | H18: 141.8519112 | I18: 150.3630259 | J18: 159.3848075 | K18: 168.9478959 | L18: 179.0847697 | M18: 189.8298558 | N18: 201.2196472 | O18: 213.292826 | P18: 226.0903956 | Q18: 239.6558193 | R18: 254.0351685 | S18: 269.2772786 | T18: 285.4339153 | U18: 302.5599502 | V18: 320.7135472 | W18: 339.9563601 | X18: 360.3537417 | Y18: 381.9749662 | Z18: 404.8934641 | AA18: 429.187072 | AB18: 454.9382963 | AC18: 482.2345941 | AD18: 511.1686697 | AE18: 541.8387899
A19: µ'' | B19: =csinterpolate(CSTableU2,'FT140-61 4t (3)'!B18*1000000) -> 51.43 | C19: =csinterpolate(CSTableU2,'FT140-61 4t (3)'!C18*1000000) -> 49.94500186 | D19: =csinterpolate(CSTableU2,'FT140-61 4t (3)'!D18*1000000) -> 48.62569002 | E19: =csinterpolate(CSTableU2,'FT140-61 4t (3)'!E18*1000000) -> 47.29834785 | F19: =csinterpolate(CSTableU2,'FT140-61 4t (3)'!F18*1000000) -> 45.89571952 | G19: =csinterpolate(CSTableU2,'FT140-61 4t (3)'!G18*1000000) -> 44.59099473 | H19: =csinterpolate(CSTableU2,'FT140-61 4t (3)'!H18*1000000) -> 43.35196826 | I19: =csinterpolate(CSTableU2,'FT140-61 4t (3)'!I18*1000000) -> 42.12542528 | J19: =csinterpolate(CSTableU2,'FT140-61 4t (3)'!J18*1000000) -> 40.90149943 | K19: =csinterpolate(CSTableU2,'FT140-61 4t (3)'!K18*1000000) -> 39.66844343 | L19: =csinterpolate(CSTableU2,'FT140-61 4t (3)'!L18*1000000) -> 38.40615625 | M19: =csinterpolate(CSTableU2,'FT140-61 4t (3)'!M18*1000000) -> 37.17461783 | N19: =csinterpolate(CSTableU2,'FT140-61 4t (3)'!N18*1000000) -> 36.02791147 | O19: =csinterpolate(CSTableU2,'FT140-61 4t (3)'!O18*1000000) -> 34.8127823 | P19: =csinterpolate(CSTableU2,'FT140-61 4t (3)'!P18*1000000) -> 33.63872075 | Q19: =csinterpolate(CSTableU2,'FT140-61 4t (3)'!Q18*1000000) -> 32.49543454 | R19: =csinterpolate(CSTableU2,'FT140-61 4t (3)'!R18*1000000) -> 31.32210745 | S19: =csinterpolate(CSTableU2,'FT140-61 4t (3)'!S18*1000000) -> 30.1246537 | T19: =csinterpolate(CSTableU2,'FT140-61 4t (3)'!T18*1000000) -> 28.9299606 | U19: =csinterpolate(CSTableU2,'FT140-61 4t (3)'!U18*1000000) -> 27.77687549 | V19: =csinterpolate(CSTableU2,'FT140-61 4t (3)'!V18*1000000) -> 26.6465085 | W19: =csinterpolate(CSTableU2,'FT140-61 4t (3)'!W18*1000000) -> 25.57018238 | X19: =csinterpolate(CSTableU2,'FT140-61 4t (3)'!X18*1000000) -> 24.50987805 | Y19: =csinterpolate(CSTableU2,'FT140-61 4t (3)'!Y18*1000000) -> 23.44404961 | Z19: =csinterpolate(CSTableU2,'FT140-61 4t (3)'!Z18*1000000) -> 22.45317614 | AA19: =csinterpolate(CSTableU2,'FT140-61 4t (3)'!AA18*1000000) -> 21.49924166 | AB19: =csinterpolate(CSTableU2,'FT140-61 4t (3)'!AB18*1000000) -> 20.61169227 | AC19: =csinterpolate(CSTableU2,'FT140-61 4t (3)'!AC18*1000000) -> 19.71942653 | AD19: =csinterpolate(CSTableU2,'FT140-61 4t (3)'!AD18*1000000) -> 18.85805491 | AE19: =csinterpolate(CSTableU2,'FT140-61 4t (3)'!AE18*1000000) -> 18.07093469
A20: µ' | B20: =csinterpolate(CSTableU1,'FT140-61 4t (3)'!B18*1000000) -> 32.9 | C20: =csinterpolate(CSTableU1,'FT140-61 4t (3)'!C18*1000000) -> 31.07881237 | D20: =csinterpolate(CSTableU1,'FT140-61 4t (3)'!D18*1000000) -> 29.45708587 | E20: =csinterpolate(CSTableU1,'FT140-61 4t (3)'!E18*1000000) -> 27.84639353 | F20: =csinterpolate(CSTableU1,'FT140-61 4t (3)'!F18*1000000) -> 26.14476709 | G20: =csinterpolate(CSTableU1,'FT140-61 4t (3)'!G18*1000000) -> 24.5547298 | H20: =csinterpolate(CSTableU1,'FT140-61 4t (3)'!H18*1000000) -> 23.05602923 | I20: =csinterpolate(CSTableU1,'FT140-61 4t (3)'!I18*1000000) -> 21.62757457 | J20: =csinterpolate(CSTableU1,'FT140-61 4t (3)'!J18*1000000) -> 20.17331919 | K20: =csinterpolate(CSTableU1,'FT140-61 4t (3)'!K18*1000000) -> 18.74032596 | L20: =csinterpolate(CSTableU1,'FT140-61 4t (3)'!L18*1000000) -> 17.34220815 | M20: =csinterpolate(CSTableU1,'FT140-61 4t (3)'!M18*1000000) -> 15.98753563 | N20: =csinterpolate(CSTableU1,'FT140-61 4t (3)'!N18*1000000) -> 14.76247422 | O20: =csinterpolate(CSTableU1,'FT140-61 4t (3)'!O18*1000000) -> 13.49334281 | P20: =csinterpolate(CSTableU1,'FT140-61 4t (3)'!P18*1000000) -> 12.36245446 | Q20: =csinterpolate(CSTableU1,'FT140-61 4t (3)'!Q18*1000000) -> 11.27161593 | R20: =csinterpolate(CSTableU1,'FT140-61 4t (3)'!R18*1000000) -> 10.1833131 | S20: =csinterpolate(CSTableU1,'FT140-61 4t (3)'!S18*1000000) -> 9.173864449 | T20: =csinterpolate(CSTableU1,'FT140-61 4t (3)'!T18*1000000) -> 8.191768523 | U20: =csinterpolate(CSTableU1,'FT140-61 4t (3)'!U18*1000000) -> 7.314725173 | V20: =csinterpolate(CSTableU1,'FT140-61 4t (3)'!V18*1000000) -> 6.499127447 | W20: =csinterpolate(CSTableU1,'FT140-61 4t (3)'!W18*1000000) -> 5.7480367 | X20: =csinterpolate(CSTableU1,'FT140-61 4t (3)'!X18*1000000) -> 5.063521791 | Y20: =csinterpolate(CSTableU1,'FT140-61 4t (3)'!Y18*1000000) -> 4.43065491 | Z20: =csinterpolate(CSTableU1,'FT140-61 4t (3)'!Z18*1000000) -> 3.848473066 | AA20: =csinterpolate(CSTableU1,'FT140-61 4t (3)'!AA18*1000000) -> 3.291940379 | AB20: =csinterpolate(CSTableU1,'FT140-61 4t (3)'!AB18*1000000) -> 2.770124862 | AC20: =csinterpolate(CSTableU1,'FT140-61 4t (3)'!AC18*1000000) -> 2.304043361 | AD20: =csinterpolate(CSTableU1,'FT140-61 4t (3)'!AD18*1000000) -> 1.908144135 | AE20: =csinterpolate(CSTableU1,'FT140-61 4t (3)'!AE18*1000000) -> 1.529397525
A21: Rl | B21: =B19/$B$13*$B$16*B18*1000000 -> 144.7686107 | C21: 149.0238507 | D21: 153.7925826 | E21: 158.5701544 | F21: 163.0998367 | G21: 167.9710238 | H21: 173.1019236 | I21: 178.2966723 | J21: 183.5033655 | K21: 188.6495741 | L21: 193.6053612 | M21: 198.6410091 | N21: 204.0644498 | O21: 209.0127912 | P21: 214.081662 | Q21: 219.2139614 | R21: 223.9766279 | S21: 228.3387688 | T21: 232.4402315 | U21: 236.5662112 | V21: 240.5556153 | W21: 244.6892436 | X21: 248.615424 | Y21: 252.072469 | Z21: 255.9036215 | AA21: 259.7333131 | AB21: 263.951436 | AC21: 267.6766728 | AD21: 271.3432395 | AE21: 275.6186438
A22: Xl | B22: =B20/$B$13*$B$16*B18*1000000 -> 92.60912488 | C22: 92.73168733 | D22: 93.166417 | E22: 93.35647274 | F22: 92.91078315 | G22: 92.49587567 | H22: 92.06140276 | I22: 91.5391251 | J22: 90.50699895 | K22: 89.12259228 | L22: 87.42203858 | M22: 85.4287252 | N22: 83.61562064 | O22: 81.01280785 | P22: 78.67644004 | Q22: 76.03823779 | R22: 72.81834827 | S22: 69.53603299 | T22: 65.81746163 | U22: 62.2970291 | V22: 58.67191199 | W22: 55.00479942 | X22: 51.36172503 | Y22: 47.63878855 | Z22: 43.86186563 | AA22: 39.77008096 | AB22: 35.47396428 | AC22: 31.27568948 | AD22: 27.45574841 | AE22: 23.32643434
A23: Yl | B23: =IMDIV(1,COMPLEX(B21,B22)) -> 0.00490169454882521-0.00313563582843379i | C23: 0.0048372943061254-0.00301005819481069i | D23: 0.00475664722228996-0.00288154195125446i | E23: 0.00468312186195956-0.00275713762213012i | F23: 0.00462905074404109-0.00263696603590977i | G23: 0.00456818486173508-0.00251554255849587i | H23: 0.00450322124677962-0.00239496393997483i | I23: 0.00443865077186738-0.00227884347538744i | J23: 0.00438321644962458-0.00216187733364291i | K23: 0.00433363384253093-0.00204731276951055i | L23: 0.00429036183840049-0.00193730264359631i | M23: 0.00424843142855983-0.001827105504202i | N23: 0.00419593264438506-0.00171928776735468i | O23: 0.00415950638198298-0.001612213727552i | P23: 0.00411529782235653-0.00151239942439389i | Q23: 0.00407184081729694-0.00141238996993206i | R23: 0.00403794006623838-0.00131279825412889i | S23: 0.00400778174381646-0.001220490261107i | T23: 0.00398284168017576-0.00112777606429917i | U23: 0.00395301560418313-0.00104098183267328i | V23: 0.00392363366634948-0.000956980733540277i | W23: 0.00389023286666421-0.0008745030036318i | X23: 0.00385763331064434-0.000796952571105355i | Y23: 0.00383030741633993-0.000723883912630915i | Z23: 0.00379619673347199-0.000650667896111516i | AA23: 0.00376190363580971-0.000576018572229377i | AB23: 0.00372135965588277-0.000500135106229742i | AC23: 0.00368553585636776-0.000430622787556096i | AD23: 0.00364801955558347-0.000369123281998805i | AE23: 0.00360239851955402-0.000304881815592375i
A24: Yc | B24: =COMPLEX(0,2*PI()*B18*1000000*$B$9*0.000000000001) -> 0.000816814089933346i | C24: 0.000865822935329347i | D24: 0.000917772311449108i | E24: 0.000972838650136054i | F24: 0.00103120896914422i | G24: 0.00109308150729287i | H24: 0.00115866639773044i | I24: 0.00122818638159427i | J24: 0.00130187756448993i | K24: 0.00137999021835932i | L24: 0.00146278963146088i | M24: 0.00155055700934853i | N24: 0.00164359042990945i | O24: 0.00174220585570401i | P24: 0.00184673820704625i | Q24: 0.00195754249946903i | R24: 0.00207499504943717i | S24: 0.0021994947524034i | T24: 0.00233146443754761i | U24: 0.00247135230380046i | V24: 0.00261963344202849i | W24: 0.0027768114485502i | X24: 0.00294342013546321i | Y24: 0.003120025343591i | Z24: 0.00330722686420646i | AA24: 0.00350566047605885i | AB24: 0.00371600010462238i | AC24: 0.00393896011089973i | AD24: 0.00417529771755371i | AE24: 0.00442581558060693i
A25: Z | B25: =IMDIV(1,IMSUM(B23,B24)) -> 166.704210826268+78.8619821396577i | C25: 172.778029069725+76.5875959884985i | D25: 179.617556650415+74.1546488613237i | E25: 186.464503426258+71.0441520814154i | F25: 192.824356399039+66.8882434116449i | G25: 199.556310401375+62.1387022765791i | H25: 206.499371261658+56.6915661424292i | I25: 213.340249348262+50.4990047403648i | J25: 219.686025343529+43.1030347811714i | K25: 225.408357898991+34.7099191832312i | L25: 230.263914864387+25.4671349279788i | M25: 234.387828273752+15.2573019503937i | N25: 238.248495791677+4.29815688435678i | O25: 240.178565728018-7.50601634624687i | P25: 241.402423771616-19.6122360949601i | Q25: 241.264547979417-32.3013557062099i | R25: 239.130820723941-45.1380511412639i | S25: 235.464264304828-57.518245011694i | T25: 230.063896179104-69.5295618486153i | U25: 223.684375102206-80.9385939838323i | V25: 216.067270607877-91.5592186326813i | W25: 207.449333269115-101.441901319629i | X25: 197.94248312596-110.139322590866i | Y25: 187.642902971196-117.384555640848i | Z25: 176.827059652118-123.742667754487i | AA25: 165.469534187751-128.862014579286i | AB25: 153.836820081065-132.940239834294i | AC25: 142.344818345528-135.500957919958i | AD25: 131.247281019589-136.937326716975i | AE25: 120.242798723385-137.550747528175i
A26: R | B26: =IMREAL(B25) -> 166.7042108 | C26: 172.7780291 | D26: 179.6175567 | E26: 186.4645034 | F26: 192.8243564 | G26: 199.5563104 | H26: 206.4993713 | I26: 213.3402493 | J26: 219.6860253 | K26: 225.4083579 | L26: 230.2639149 | M26: 234.3878283 | N26: 238.2484958 | O26: 240.1785657 | P26: 241.4024238 | Q26: 241.264548 | R26: 239.1308207 | S26: 235.4642643 | T26: 230.0638962 | U26: 223.6843751 | V26: 216.0672706 | W26: 207.4493333 | X26: 197.9424831 | Y26: 187.642903 | Z26: 176.8270597 | AA26: 165.4695342 | AB26: 153.8368201 | AC26: 142.3448183 | AD26: 131.247281 | AE26: 120.2427987
A27: X | B27: =IMAGINARY(B25) -> 78.86198214 | C27: 76.58759599 | D27: 74.15464886 | E27: 71.04415208 | F27: 66.88824341 | G27: 62.13870228 | H27: 56.69156614 | I27: 50.49900474 | J27: 43.10303478 | K27: 34.70991918 | L27: 25.46713493 | M27: 15.25730195 | N27: 4.298156884 | O27: -7.506016346 | P27: -19.61223609 | Q27: -32.30135571 | R27: -45.13805114 | S27: -57.51824501 | T27: -69.52956185 | U27: -80.93859398 | V27: -91.55921863 | W27: -101.4419013 | X27: -110.1393226 | Y27: -117.3845556 | Z27: -123.7426678 | AA27: -128.8620146 | AB27: -132.9402398 | AC27: -135.5009579 | AD27: -136.9373267 | AE27: -137.5507475
A28: |Z| | B28: =IMABS(B25) -> 184.4166645 | C28: 188.9918178 | D28: 194.3228721 | E28: 199.5401779 | F28: 204.0962261 | G28: 209.0070318 | H28: 214.1399636 | I28: 219.235516 | J28: 223.8745661 | K28: 228.0651361 | L28: 231.6679638 | M28: 234.8838847 | N28: 238.2872634 | O28: 240.2958254 | P28: 242.1977911 | Q28: 243.4172543 | R28: 243.3536379 | S28: 242.3876405 | T28: 240.3409168 | U28: 237.8776065 | V28: 234.666052 | W28: 230.9235484 | X28: 226.5212948 | Y28: 221.3345724 | Z28: 215.8241341 | AA28: 209.7274077 | AB28: 203.3196365 | AC28: 196.5262245 | AD28: 189.6778327 | AE28: 182.6979441
A32: Module | B32: Version | C32: Date
A33: CubicSpline | B33: =CubicSpline_version("v") -> 1.04 | C33: =CubicSpline_version("d") -> 2014-03-07
A35: Copyright: Owen Duffy 2010. All rights reserved.

Sheet FT140-61 4t (2)
A1: Calculate impedance of ferrite cored inductor
A3: Reference:
A4: A method for estimating the impedance of a ferrite cored toroidal inductor at RF
A6: Inputs:
A7: Al (nH for 1t) | B7: 140
A8: N | B8: 5
A9: Cs (pF) | B9: 1.8
A11: Constants:
A12: Mix | B12: =Mix!B1 -> #61
A13: µi | B13: =Mix!B2 -> 125
A15: Calculated values:
A16: 2*pi*N^2*Al | B16: =2*PI()*$B$8^2*$B$7*0.000000001 -> 2.199114858e-05
A18: f (MHz) | B18: 50 | C18: =B18+5 -> 55 | D18: 60 | E18: 65 | F18: 70 | G18: 75 | H18: 80 | I18: 85 | J18: 90 | K18: 95 | L18: 100 | M18: 105 | N18: 110 | O18: 115 | P18: 120 | Q18: 125 | R18: 130 | S18: 135 | T18: 140 | U18: 145 | V18: 150 | W18: 155 | X18: 160 | Y18: 165 | Z18: 170 | AA18: 175 | AB18: 180 | AC18: 185 | AD18: 190 | AE18: 195
A19: µ'' | B19: =csinterpolate(CSTableU2,'FT140-61 4t (2)'!B18*1000000) -> 73.15 | C19: =csinterpolate(CSTableU2,'FT140-61 4t (2)'!C18*1000000) -> 69.90070366 | D19: =csinterpolate(CSTableU2,'FT140-61 4t (2)'!D18*1000000) -> 66.89232642 | E19: =csinterpolate(CSTableU2,'FT140-61 4t (2)'!E18*1000000) -> 64.196133 | F19: =csinterpolate(CSTableU2,'FT140-61 4t (2)'!F18*1000000) -> 61.7002814 | G19: =csinterpolate(CSTableU2,'FT140-61 4t (2)'!G18*1000000) -> 59.54310615 | H19: =csinterpolate(CSTableU2,'FT140-61 4t (2)'!H18*1000000) -> 57.57973921 | I19: =csinterpolate(CSTableU2,'FT140-61 4t (2)'!I18*1000000) -> 55.79301765 | J19: =csinterpolate(CSTableU2,'FT140-61 4t (2)'!J18*1000000) -> 54.20552534 | K19: =csinterpolate(CSTableU2,'FT140-61 4t (2)'!K18*1000000) -> 52.77377266 | L19: =csinterpolate(CSTableU2,'FT140-61 4t (2)'!L18*1000000) -> 51.43 | M19: =csinterpolate(CSTableU2,'FT140-61 4t (2)'!M18*1000000) -> 50.1777721 | N19: =csinterpolate(CSTableU2,'FT140-61 4t (2)'!N18*1000000) -> 49.09012062 | O19: =csinterpolate(CSTableU2,'FT140-61 4t (2)'!O18*1000000) -> 48.1154741 | P19: =csinterpolate(CSTableU2,'FT140-61 4t (2)'!P18*1000000) -> 47.11638348 | Q19: =csinterpolate(CSTableU2,'FT140-61 4t (2)'!Q18*1000000) -> 46.12878076 | R19: =csinterpolate(CSTableU2,'FT140-61 4t (2)'!R18*1000000) -> 45.2280812 | S19: =csinterpolate(CSTableU2,'FT140-61 4t (2)'!S18*1000000) -> 44.40194943 | T19: =csinterpolate(CSTableU2,'FT140-61 4t (2)'!T18*1000000) -> 43.62879959 | U19: =csinterpolate(CSTableU2,'FT140-61 4t (2)'!U18*1000000) -> 42.88979399 | V19: =csinterpolate(CSTableU2,'FT140-61 4t (2)'!V18*1000000) -> 42.17626535 | W19: =csinterpolate(CSTableU2,'FT140-61 4t (2)'!W18*1000000) -> 41.48729508 | X19: =csinterpolate(CSTableU2,'FT140-61 4t (2)'!X18*1000000) -> 40.82050504 | Y19: =csinterpolate(CSTableU2,'FT140-61 4t (2)'!Y18*1000000) -> 40.17136058 | Z19: =csinterpolate(CSTableU2,'FT140-61 4t (2)'!Z18*1000000) -> 39.53561698 | AA19: =csinterpolate(CSTableU2,'FT140-61 4t (2)'!AA18*1000000) -> 38.91 | AB19: =csinterpolate(CSTableU2,'FT140-61 4t (2)'!AB18*1000000) -> 38.29490802 | AC19: =csinterpolate(CSTableU2,'FT140-61 4t (2)'!AC18*1000000) -> 37.70491384 | AD19: =csinterpolate(CSTableU2,'FT140-61 4t (2)'!AD18*1000000) -> 37.15668464 | AE19: =csinterpolate(CSTableU2,'FT140-61 4t (2)'!AE18*1000000) -> 36.64527951
A20: µ' | B20: =csinterpolate(CSTableU1,'FT140-61 4t (2)'!B18*1000000) -> 64.33 | C20: =csinterpolate(CSTableU1,'FT140-61 4t (2)'!C18*1000000) -> 58.19568703 | D20: =csinterpolate(CSTableU1,'FT140-61 4t (2)'!D18*1000000) -> 53.29832946 | E20: =csinterpolate(CSTableU1,'FT140-61 4t (2)'!E18*1000000) -> 49.21728237 | F20: =csinterpolate(CSTableU1,'FT140-61 4t (2)'!F18*1000000) -> 45.80675305 | G20: =csinterpolate(CSTableU1,'FT140-61 4t (2)'!G18*1000000) -> 42.9191926 | H20: =csinterpolate(CSTableU1,'FT140-61 4t (2)'!H18*1000000) -> 40.42923374 | I20: =csinterpolate(CSTableU1,'FT140-61 4t (2)'!I18*1000000) -> 38.25348164 | J20: =csinterpolate(CSTableU1,'FT140-61 4t (2)'!J18*1000000) -> 36.28174309 | K20: =csinterpolate(CSTableU1,'FT140-61 4t (2)'!K18*1000000) -> 34.49773078 | L20: =csinterpolate(CSTableU1,'FT140-61 4t (2)'!L18*1000000) -> 32.9 | M20: =csinterpolate(CSTableU1,'FT140-61 4t (2)'!M18*1000000) -> 31.36749828 | N20: =csinterpolate(CSTableU1,'FT140-61 4t (2)'!N18*1000000) -> 30.02436415 | O20: =csinterpolate(CSTableU1,'FT140-61 4t (2)'!O18*1000000) -> 28.83707598 | P20: =csinterpolate(CSTableU1,'FT140-61 4t (2)'!P18*1000000) -> 27.62582081 | Q20: =csinterpolate(CSTableU1,'FT140-61 4t (2)'!Q18*1000000) -> 26.42787038 | R20: =csinterpolate(CSTableU1,'FT140-61 4t (2)'!R18*1000000) -> 25.33238477 | S20: =csinterpolate(CSTableU1,'FT140-61 4t (2)'!S18*1000000) -> 24.32384624 | T20: =csinterpolate(CSTableU1,'FT140-61 4t (2)'!T18*1000000) -> 23.38631503 | U20: =csinterpolate(CSTableU1,'FT140-61 4t (2)'!U18*1000000) -> 22.51367446 | V20: =csinterpolate(CSTableU1,'FT140-61 4t (2)'!V18*1000000) -> 21.68663982 | W20: =csinterpolate(CSTableU1,'FT140-61 4t (2)'!W18*1000000) -> 20.87617712 | X20: =csinterpolate(CSTableU1,'FT140-61 4t (2)'!X18*1000000) -> 20.07623831 | Y20: =csinterpolate(CSTableU1,'FT140-61 4t (2)'!Y18*1000000) -> 19.31091253 | Z20: =csinterpolate(CSTableU1,'FT140-61 4t (2)'!Z18*1000000) -> 18.59209958 | AA20: =csinterpolate(CSTableU1,'FT140-61 4t (2)'!AA18*1000000) -> 17.9 | AB20: =csinterpolate(CSTableU1,'FT140-61 4t (2)'!AB18*1000000) -> 17.21892994 | AC20: =csinterpolate(CSTableU1,'FT140-61 4t (2)'!AC18*1000000) -> 16.56682869 | AD20: =csinterpolate(CSTableU1,'FT140-61 4t (2)'!AD18*1000000) -> 15.96811056 | AE20: =csinterpolate(CSTableU1,'FT140-61 4t (2)'!AE18*1000000) -> 15.41833553
A21: Rl | B21: =B19/$B$13*$B$16*B18*1000000 -> 643.4610073 | C21: 676.3665742 | D21: 706.0987626 | E21: 734.1082834 | F21: 759.841631 | G21: 785.6527763 | H21: 810.396544 | I21: 834.3277277 | J21: 858.2700681 | K21: 882.0224654 | L21: 904.803817 | M21: 926.9121467 | N21: 950.0023599 | O21: 973.4653764 | P21: 994.697654 | Q21: 1014.424871 | R21: 1034.402152 | S21: 1054.565856 | T21: 1074.581104 | U21: 1094.107165 | V21: 1113.005421 | W21: 1131.318055 | X21: 1149.042933 | Y21: 1166.106954 | Z21: 1182.429733 | AA21: 1197.945827 | AB21: 1212.694577 | AC21: 1227.178056 | AD21: 1242.019622 | AE21: 1257.159986
A22: Xl | B22: =B20/$B$13*$B$16*B18*1000000 -> 565.8762351 | C22: 563.1075999 | D22: 562.6039114 | E22: 562.8191759 | F22: 564.1121428 | G22: 566.3054047 | H22: 569.0145831 | I22: 572.0418388 | J22: 574.4715861 | K22: 576.5699896 | L22: 578.8070305 | M22: 579.4381447 | N22: 581.0378226 | O22: 583.4275885 | P22: 583.2225888 | Q22: 581.1792242 | R22: 579.3717667 | S22: 577.7020618 | T22: 576.0069599 | U22: 574.3178097 | V22: 572.296942 | W22: 569.2729797 | X22: 565.1194106 | Y22: 560.5632735 | Z22: 556.0518089 | AA22: 551.0981833 | AB22: 545.2762273 | AC22: 539.1989149 | AD22: 533.7587794 | AE22: 528.9443754
A23: Yl | B23: =IMDIV(1,COMPLEX(B21,B22)) -> 0.000876341862932862-0.000770677676588804i | C23: 0.000873224675664098-0.000727001407282706i | D23: 0.000866274021482464-0.000690228022731894i | E23: 0.000857923456475779-0.000657744618425042i | F23: 0.000848433520236908-0.000629883427824458i | G23: 0.000837625694720549-0.000603767939635405i | H23: 0.000826496569681975-0.000580319109835942i | I23: 0.000815302941327934-0.000558997835341549i | J23: 0.000804644447945196-0.000538577994740338i | K23: 0.000794331034011779-0.000519246905816343i | L23: 0.000784271127812034-0.000501701732549405i | M23: 0.000775714076900213-0.000484920094218945i | N23: 0.000766063327132137-0.000468537538853473i | O23: 0.000755782844074167-0.000452963785720922i | P23: 0.000748133719570976-0.000438654382045286i | Q23: 0.000742174971341174-0.000425203172963458i | R23: 0.000735883892568517-0.000412170788927935i | S23: 0.000729374913575988-0.000399559106622718i | T23: 0.000722889277690079-0.000387489835655483i | U23: 0.000716549198482897-0.000376130400469307i | V23: 0.000710593098032665-0.000365380302072494i | W23: 0.000705331497915162-0.000354918903448747i | X23: 0.000700781385358853-0.000344656541626494i | Y23: 0.000696583901433969-0.000334857236532657i | Z23: 0.000692559247044073-0.000325684318824176i | AA23: 0.000688956323358694-0.000316944697715771i | AB23: 0.000685930952044009-0.000308422127676019i | AC23: 0.000683017234309992-0.000300104903071759i | AD23: 0.000679623543889116-0.000292068681318201i | AE23: 0.000675807668733726-0.000284343018477616i
A24: Yc | B24: =COMPLEX(0,2*PI()*B18*1000000*$B$9*0.000000000001) -> 0.000565486677646163i | C24: 0.000622035345410779i | D24: 0.000678584013175395i | E24: 0.000735132680940012i | F24: 0.000791681348704628i | G24: 0.000848230016469244i | H24: 0.000904778684233861i | I24: 0.000961327351998477i | J24: 0.00101787601976309i | K24: 0.00107442468752771i | L24: 0.00113097335529233i | M24: 0.00118752202305694i | N24: 0.00124407069082156i | O24: 0.00130061935858617i | P24: 0.00135716802635079i | Q24: 0.00141371669411541i | R24: 0.00147026536188002i | S24: 0.00152681402964464i | T24: 0.00158336269740926i | U24: 0.00163991136517387i | V24: 0.00169646003293849i | W24: 0.0017530087007031i | X24: 0.00180955736846772i | Y24: 0.00186610603623234i | Z24: 0.00192265470399695i | AA24: 0.00197920337176157i | AB24: 0.00203575203952619i | AC24: 0.0020923007072908i | AD24: 0.00214884937505542i | AE24: 0.00220539804282003i
A25: Z | B25: =IMDIV(1,IMSUM(B23,B24)) -> 1081.79881799453+253.297702082128i | C25: 1128.86931425917+135.695851924629i | D25: 1154.16061698121+15.5136330082548i | E25: 1156.19746361242-104.293548472543i | F25: 1137.28289937271-216.882058737725i | G25: 1100.14359757507-321.078245777044i | H25: 1048.36047260475-411.557174263679i | I25: 986.347508320702-486.735293303469i | J25: 917.308995156925-546.408281119793i | K25: 845.767067931-591.127709371981i | L25: 775.688923320652-622.385563119552i | M25: 708.167761458714-641.421949089862i | N25: 644.669109655241-652.638298793217i | O25: 586.00188023944-657.236087573496i | P25: 533.097462126224-654.505043548059i | Q25: 485.722113289743-646.940270219234i | R25: 443.012861606179-636.988401767232i | S25: 404.603307611999-625.317736992693i | T25: 370.203503949627-612.426186641159i | U25: 339.502636056031-598.782288533776i | V25: 312.11321929318-584.649050330895i | W25: 287.638271453385-570.149119679928i | X25: 265.74656175465-555.511841749696i | Y25: 246.146894691105-541.086488317713i | Z25: 228.570974743146-527.061156331147i | AA25: 212.787643333194-513.396994654207i | AB25: 198.580548388352-500.070918392967i | AC25: 185.679286546607-487.211188185309i | AD25: 173.837983557045-474.937948529331i | AE25: 162.956408240364-463.2208855894i
A26: R | B26: =IMREAL(B25) -> 1081.798818 | C26: 1128.869314 | D26: 1154.160617 | E26: 1156.197464 | F26: 1137.282899 | G26: 1100.143598 | H26: 1048.360473 | I26: 986.3475083 | J26: 917.3089952 | K26: 845.7670679 | L26: 775.6889233 | M26: 708.1677615 | N26: 644.6691097 | O26: 586.0018802 | P26: 533.0974621 | Q26: 485.7221133 | R26: 443.0128616 | S26: 404.6033076 | T26: 370.2035039 | U26: 339.5026361 | V26: 312.1132193 | W26: 287.6382715 | X26: 265.7465618 | Y26: 246.1468947 | Z26: 228.5709747 | AA26: 212.7876433 | AB26: 198.5805484 | AC26: 185.6792865 | AD26: 173.8379836 | AE26: 162.9564082
A27: X | B27: =IMAGINARY(B25) -> 253.2977021 | C27: 135.6958519 | D27: 15.51363301 | E27: -104.2935485 | F27: -216.8820587 | G27: -321.0782458 | H27: -411.5571743 | I27: -486.7352933 | J27: -546.4082811 | K27: -591.1277094 | L27: -622.3855631 | M27: -641.4219491 | N27: -652.6382988 | O27: -657.2360876 | P27: -654.5050435 | Q27: -646.9402702 | R27: -636.9884018 | S27: -625.317737 | T27: -612.4261866 | U27: -598.7822885 | V27: -584.6490503 | W27: -570.1491197 | X27: -555.5118417 | Y27: -541.0864883 | Z27: -527.0611563 | AA27: -513.3969947 | AB27: -500.0709184 | AC27: -487.2111882 | AD27: -474.9379485 | AE27: -463.2208856
A28: |Z| | B28: =IMABS(B25) -> 1111.057338 | C28: 1136.995731 | D28: 1154.264875 | E28: 1160.891778 | F28: 1157.77814 | G28: 1146.039779 | H28: 1126.249967 | I28: 1099.905747 | J28: 1067.716162 | K28: 1031.86913 | L28: 994.5134966 | M28: 955.4704052 | N28: 917.3521734 | O28: 880.5438538 | P28: 844.1384698 | Q28: 808.9855898 | R28: 775.8960108 | S28: 744.7993748 | T28: 715.623133 | U28: 688.3329637 | V28: 662.7436712 | W28: 638.5967381 | X28: 615.8040609 | Y28: 594.4433376 | Z28: 574.4894716 | AA28: 555.7472944 | AB28: 538.0568349 | AC28: 521.3938428 | AD28: 505.752607 | AE28: 491.0482459
A32: Module | B32: Version | C32: Date
A33: CubicSpline | B33: =CubicSpline_version("v") -> 1.04 | C33: =CubicSpline_version("d") -> 2014-03-07
A35: Copyright: Owen Duffy 2010. All rights reserved.

Sheet FT240-61 12t
A1: Calculate impedance of ferrite cored inductor
A3: Reference:
A4: A method for estimating the impedance of a ferrite cored toroidal inductor at RF
A6: Inputs:
A7: Al (nH for 1t) | B7: 170
A8: N | B8: 15
A9: Cs (pF) | B9: 4
A11: Constants:
A12: Mix | B12: =Mix!B1 -> #61
A13: µi | B13: =Mix!B2 -> 125
A15: Calculated values:
A16: 2*pi*N^2*Al | B16: =2*PI()*$B$8^2*$B$7*0.000000001 -> 0.000240331838
A18: f (MHz) | B18: 1 | C18: =B18+1 -> 2 | D18: 3 | E18: 4 | F18: 5 | G18: 6 | H18: 7 | I18: 8 | J18: 9 | K18: 10 | L18: 11 | M18: 12 | N18: 13 | O18: 14 | P18: 15 | Q18: 16 | R18: 17 | S18: 18 | T18: 19 | U18: 20 | V18: 21 | W18: 22 | X18: 23 | Y18: 24 | Z18: 25 | AA18: 26 | AB18: 27 | AC18: 28 | AD18: 29 | AE18: 30
A19: µ'' | B19: =csinterpolate(CSTableU2,'FT240-61 12t'!B18*1000000) -> 0.62 | C19: =csinterpolate(CSTableU2,'FT240-61 12t'!C18*1000000) -> 0.758194311 | D19: =csinterpolate(CSTableU2,'FT240-61 12t'!D18*1000000) -> 0.7788709119 | E19: =csinterpolate(CSTableU2,'FT240-61 12t'!E18*1000000) -> 0.8351114376 | F19: =csinterpolate(CSTableU2,'FT240-61 12t'!F18*1000000) -> 0.93 | G19: =csinterpolate(CSTableU2,'FT240-61 12t'!G18*1000000) -> 1.036969921 | H19: =csinterpolate(CSTableU2,'FT240-61 12t'!H18*1000000) -> 1.159470753 | I19: =csinterpolate(CSTableU2,'FT240-61 12t'!I18*1000000) -> 1.392643692 | J19: =csinterpolate(CSTableU2,'FT240-61 12t'!J18*1000000) -> 1.633103561 | K19: =csinterpolate(CSTableU2,'FT240-61 12t'!K18*1000000) -> 2.02 | L19: =csinterpolate(CSTableU2,'FT240-61 12t'!L18*1000000) -> 2.509601023 | M19: =csinterpolate(CSTableU2,'FT240-61 12t'!M18*1000000) -> 3.182775641 | N19: =csinterpolate(CSTableU2,'FT240-61 12t'!N18*1000000) -> 4.186258852 | O19: =csinterpolate(CSTableU2,'FT240-61 12t'!O18*1000000) -> 5.569980087 | P19: =csinterpolate(CSTableU2,'FT240-61 12t'!P18*1000000) -> 7.559670889 | Q19: =csinterpolate(CSTableU2,'FT240-61 12t'!Q18*1000000) -> 10.36476207 | R19: =csinterpolate(CSTableU2,'FT240-61 12t'!R18*1000000) -> 14.07154078 | S19: =csinterpolate(CSTableU2,'FT240-61 12t'!S18*1000000) -> 19.17655116 | T19: =csinterpolate(CSTableU2,'FT240-61 12t'!T18*1000000) -> 25.39136867 | U19: =csinterpolate(CSTableU2,'FT240-61 12t'!U18*1000000) -> 32.08965452 | V19: =csinterpolate(CSTableU2,'FT240-61 12t'!V18*1000000) -> 39.79460805 | W19: =csinterpolate(CSTableU2,'FT240-61 12t'!W18*1000000) -> 47.42194392 | X19: =csinterpolate(CSTableU2,'FT240-61 12t'!X18*1000000) -> 54.05909787 | Y19: =csinterpolate(CSTableU2,'FT240-61 12t'!Y18*1000000) -> 59.96478192 | Z19: =csinterpolate(CSTableU2,'FT240-61 12t'!Z18*1000000) -> 65.05078817 | AA19: =csinterpolate(CSTableU2,'FT240-61 12t'!AA18*1000000) -> 69.19723667 | AB19: =csinterpolate(CSTableU2,'FT240-61 12t'!AB18*1000000) -> 72.53648529 | AC19: =csinterpolate(CSTableU2,'FT240-61 12t'!AC18*1000000) -> 75.17052821 | AD19: =csinterpolate(CSTableU2,'FT240-61 12t'!AD18*1000000) -> 77.09502519 | AE19: =csinterpolate(CSTableU2,'FT240-61 12t'!AE18*1000000) -> 78.41918291
A20: µ' | B20: =csinterpolate(CSTableU1,'FT240-61 12t'!B18*1000000) -> 118.57 | C20: =csinterpolate(CSTableU1,'FT240-61 12t'!C18*1000000) -> 118.5396803 | D20: =csinterpolate(CSTableU1,'FT240-61 12t'!D18*1000000) -> 118.7454853 | E20: =csinterpolate(CSTableU1,'FT240-61 12t'!E18*1000000) -> 119.132245 | F20: =csinterpolate(CSTableU1,'FT240-61 12t'!F18*1000000) -> 119.69 | G20: =csinterpolate(CSTableU1,'FT240-61 12t'!G18*1000000) -> 120.4198067 | H20: =csinterpolate(CSTableU1,'FT240-61 12t'!H18*1000000) -> 121.368694 | I20: =csinterpolate(CSTableU1,'FT240-61 12t'!I18*1000000) -> 122.503407 | J20: =csinterpolate(CSTableU1,'FT240-61 12t'!J18*1000000) -> 123.8652264 | K20: =csinterpolate(CSTableU1,'FT240-61 12t'!K18*1000000) -> 125.48 | L20: =csinterpolate(CSTableU1,'FT240-61 12t'!L18*1000000) -> 127.4020954 | M20: =csinterpolate(CSTableU1,'FT240-61 12t'!M18*1000000) -> 129.5264894 | N20: =csinterpolate(CSTableU1,'FT240-61 12t'!N18*1000000) -> 132.2910455 | O20: =csinterpolate(CSTableU1,'FT240-61 12t'!O18*1000000) -> 135.1219891 | P20: =csinterpolate(CSTableU1,'FT240-61 12t'!P18*1000000) -> 138.3447211 | Q20: =csinterpolate(CSTableU1,'FT240-61 12t'!Q18*1000000) -> 141.865299 | R20: =csinterpolate(CSTableU1,'FT240-61 12t'!R18*1000000) -> 145.371705 | S20: =csinterpolate(CSTableU1,'FT240-61 12t'!S18*1000000) -> 148.6956574 | T20: =csinterpolate(CSTableU1,'FT240-61 12t'!T18*1000000) -> 151.3257257 | U20: =csinterpolate(CSTableU1,'FT240-61 12t'!U18*1000000) -> 152.6542534 | V20: =csinterpolate(CSTableU1,'FT240-61 12t'!V18*1000000) -> 152.5522168 | W20: =csinterpolate(CSTableU1,'FT240-61 12t'!W18*1000000) -> 151.0175455 | X20: =csinterpolate(CSTableU1,'FT240-61 12t'!X18*1000000) -> 148.2006761 | Y20: =csinterpolate(CSTableU1,'FT240-61 12t'!Y18*1000000) -> 144.4061007 | Z20: =csinterpolate(CSTableU1,'FT240-61 12t'!Z18*1000000) -> 139.9514163 | AA20: =csinterpolate(CSTableU1,'FT240-61 12t'!AA18*1000000) -> 135.1139856 | AB20: =csinterpolate(CSTableU1,'FT240-61 12t'!AB18*1000000) -> 130.0795701 | AC20: =csinterpolate(CSTableU1,'FT240-61 12t'!AC18*1000000) -> 125.0599136 | AD20: =csinterpolate(CSTableU1,'FT240-61 12t'!AD18*1000000) -> 120.32684 | AE20: =csinterpolate(CSTableU1,'FT240-61 12t'!AE18*1000000) -> 115.9602593
A21: Rl | B21: =B19/$B$13*$B$16*B18*1000000 -> 1.192045916 | C21: 2.915491717 | D21: 4.492499467 | E21: 6.422523736 | F21: 8.940344374 | G21: 11.96241058 | H21: 15.60483328 | I21: 21.42058357 | J21: 28.25904819 | K21: 38.83762502 | L21: 53.07605834 | M21: 73.43254271 | N21: 104.6334936 | O21: 149.9280778 | P21: 218.0195519 | Q21: 318.8457369 | R21: 459.9301392 | S21: 663.6579533 | T21: 927.5578539 | U21: 1233.946504 | V21: 1606.737098 | W21: 2005.872518 | X21: 2390.550513 | Y21: 2766.997681 | Z21: 3126.755097 | AA21: 3459.102207 | AB21: 3765.490596 | AC21: 4046.755151 | AD21: 4298.586272 | AE21: 4523.190327
A22: Xl | B22: =B20/$B$13*$B$16*B18*1000000 -> 227.9691683 | C22: 455.8217479 | D22: 684.919698 | E22: 916.2006852 | F22: 1150.612708 | G22: 1389.154246 | H22: 1633.450633 | I22: 1884.254014 | J22: 2143.350542 | K22: 2412.547123 | L22: 2694.452618 | M22: 2988.416569 | N22: 3306.550013 | O22: 3637.100992 | P22: 3989.836933 | Q22: 4364.127751 | R22: 4751.493072 | S22: 5146.027294 | T22: 5527.995248 | U22: 5870.028367 | V22: 6159.40998 | W22: 6387.801072 | X22: 6553.590721 | Y22: 6663.433653 | Z22: 6726.956221 | AA22: 6754.216038 | AB22: 6752.648626 | AC22: 6732.516874 | AD22: 6709.061985 | AE22: 6688.546143
A23: Yl | B23: =IMDIV(1,COMPLEX(B21,B22)) -> 0.0000229365915334119-0.00438643815825266i | C23: 0.0000140314954882907-0.00219375028945322i | D23: 9.57613009009071E-06-0.00145996236088963i | E23: 7.65073488595131E-06-0.00109141029810486i | F23: 6.75257934675338E-06-0.000869049701089156i | G23: 6.19848506816637E-06-0.000719809088020848i | H23: 5.84800145122425E-06-0.000612145064381202i | I23: 6.03248536971158E-06-0.00053064542965901i | J23: 0.000006150290537858-0.000466478151364366i | K23: 6.67096283402923E-06-0.00041439228535346i | L23: 7.30784080191413E-06-0.000370988942957996i | M23: 8.21758388717765E-06-0.000334423444219262i | N23: 9.56061578964297E-06-0.000302127485018751i | O23: 0.0000113144880282111-0.000274477844514872i | P23: 0.0000136549560533389-0.000249890651998472i | Q23: 0.0000166522786994459-0.000227924237920588i | R23: 0.0000201828004079027-0.000208506527697344i | S23: 0.0000246511030797377-0.00019114552705847i | T23: 0.0000295221059969565-0.000175943808762472i | U23: 0.0000342954810493574-0.000163147629129571i | V23: 0.0000396530024406575-0.000152009373123861i | W23: 0.0000447464459424709-0.000142497288741819i | X23: 0.0000491233068760045-0.000134669418808204i | Y23: 0.0000531525923862251-0.000128001109417485i | Z23: 0.0000568206105890923-0.000122244866654506i | AA23: 0.0000600696861573391-0.000117291601499439i | AB23: 0.0000629921052361176-0.00011296364765114i | AC23: 0.0000655844034849883-0.000109111642959168i | AD23: 0.0000677056202562026-0.000105672231347086i | AE23: 0.0000693784472680017-0.000102591514471762i
A24: Yc | B24: =COMPLEX(0,2*PI()*B18*1000000*$B$9*0.000000000001) -> 0.0000251327412287183i | C24: 0.0000502654824574367i | D24: 0.000075398223686155i | E24: 0.000100530964914873i | F24: 0.000125663706143592i | G24: 0.00015079644737231i | H24: 0.000175929188601028i | I24: 0.000201061929829747i | J24: 0.000226194671058465i | K24: 0.000251327412287183i | L24: 0.000276460153515902i | M24: 0.00030159289474462i | N24: 0.000326725635973338i | O24: 0.000351858377202057i | P24: 0.000376991118430775i | Q24: 0.000402123859659493i | R24: 0.000427256600888212i | S24: 0.00045238934211693i | T24: 0.000477522083345648i | U24: 0.000502654824574367i | V24: 0.000527787565803085i | W24: 0.000552920307031803i | X24: 0.000578053048260522i | Y24: 0.00060318578948924i | Z24: 0.000628318530717959i | AA24: 0.000653451271946677i | AB24: 0.000678584013175395i | AC24: 0.000703716754404114i | AD24: 0.000728849495632832i | AE24: 0.00075398223686155i
A25: Z | B25: =IMDIV(1,IMSUM(B23,B24)) -> 1.20582384332653+229.282805695686i | C25: 3.05382771330587+466.510024688123i | D25: 4.99508756743429+722.214406341144i | E25: 7.79176277928035+1009.14445765008i | F25: 12.2181404677121+1345.08519508797i | G25: 19.1421271884876+1757.22167906643i | H25: 30.7274478141821+2292.03099050993i | I25: 55.5162196048875+3033.11634148954i | J25: 106.454339119064+4159.02613701596i | K25: 250.461773990044+6122.28225516479i | L25: 812.967214729522+10515.9388042996i | M25: 7174.58777625022+28663.6147780468i | N25: 13727.160288518-35318.0975351576i | O25: 1850.05293587909-12652.6345090357i | P25: 835.626181043593-7778.01678444177i | Q25: 543.786822580826-5688.5583354627i | R25: 418.218892238974-4532.84041055361i | S25: 358.009473264171-3794.0598568783i | T25: 321.517982153588-3284.41467947238i | U25: 294.530174447619-2915.69356781048i | V25: 277.717853492583-2631.83886810024i | W25: 262.520564010732-2407.88916248225i | X25: 246.848131113456-2228.03445567848i | Y25: 232.487412580029-2078.4396735498i | Z25: 219.097709781144-1951.39720652949i | AA25: 206.371453100622-1841.99481239721i | AB25: 194.483463160509-1746.3110195942i | AC25: 183.270092499476-1661.5739106344i | AD25: 172.30788943612-1585.9593154501i | AE25: 161.674876705939-1517.95721692857i
A26: R | B26: =IMREAL(B25) -> 1.205823843 | C26: 3.053827713 | D26: 4.995087567 | E26: 7.791762779 | F26: 12.21814047 | G26: 19.14212719 | H26: 30.72744781 | I26: 55.5162196 | J26: 106.4543391 | K26: 250.461774 | L26: 812.9672147 | M26: 7174.587776 | N26: 13727.16029 | O26: 1850.052936 | P26: 835.626181 | Q26: 543.7868226 | R26: 418.2188922 | S26: 358.0094733 | T26: 321.5179822 | U26: 294.5301744 | V26: 277.7178535 | W26: 262.520564 | X26: 246.8481311 | Y26: 232.4874126 | Z26: 219.0977098 | AA26: 206.3714531 | AB26: 194.4834632 | AC26: 183.2700925 | AD26: 172.3078894 | AE26: 161.6748767
A27: X | B27: =IMAGINARY(B25) -> 229.2828057 | C27: 466.5100247 | D27: 722.2144063 | E27: 1009.144458 | F27: 1345.085195 | G27: 1757.221679 | H27: 2292.030991 | I27: 3033.116341 | J27: 4159.026137 | K27: 6122.282255 | L27: 10515.9388 | M27: 28663.61478 | N27: -35318.09754 | O27: -12652.63451 | P27: -7778.016784 | Q27: -5688.558335 | R27: -4532.840411 | S27: -3794.059857 | T27: -3284.414679 | U27: -2915.693568 | V27: -2631.838868 | W27: -2407.889162 | X27: -2228.034456 | Y27: -2078.439674 | Z27: -1951.397207 | AA27: -1841.994812 | AB27: -1746.31102 | AC27: -1661.573911 | AD27: -1585.959315 | AE27: -1517.957217
A28: |Z| | B28: =IMABS(B25) -> 229.2859765 | C28: 466.5200199 | D28: 722.23168 | E28: 1009.174538 | F28: 1345.140686 | G28: 1757.325937 | H28: 2292.236951 | I28: 3033.624366 | J28: 4160.388315 | K28: 6127.403293 | L28: 10547.31647 | M28: 29547.88524 | N28: 37891.99049 | O28: 12787.17545 | P28: 7822.77548 | Q28: 5714.490357 | R28: 4552.092841 | S28: 3810.913405 | T28: 3300.11418 | U28: 2930.531864 | V28: 2646.451026 | W28: 2422.157564 | X28: 2241.667133 | Y28: 2091.401892 | Z28: 1963.658541 | AA28: 1853.519373 | AB28: 1757.10728 | AC28: 1671.650618 | AD28: 1595.292123 | AE28: 1526.542786
A32: Module | B32: Version | C32: Date
A33: CubicSpline | B33: =CubicSpline_version("v") -> 1.04 | C33: =CubicSpline_version("d") -> 2014-03-07
A35: Copyright: Owen Duffy 2010. All rights reserved.

Sheet FT240-61x2 12t
A1: Calculate impedance of ferrite cored inductor
A3: Reference:
A4: A method for estimating the impedance of a ferrite cored toroidal inductor at RF
A6: Inputs:
A7: Al (nH for 1t) | B7: 340
A8: N | B8: 10
A9: Cs (pF) | B9: 4
A11: Constants:
A12: Mix | B12: =Mix!B1 -> #61
A13: µi | B13: =Mix!B2 -> 125
A15: Calculated values:
A16: 2*pi*N^2*Al | B16: =2*PI()*$B$8^2*$B$7*0.000000001 -> 0.0002136283004
A18: f (MHz) | B18: 1 | C18: =B18+1 -> 2 | D18: 3 | E18: 4 | F18: 5 | G18: 6 | H18: 7 | I18: 8 | J18: 9 | K18: 10 | L18: 11 | M18: 12 | N18: 13 | O18: 14 | P18: 15 | Q18: 16 | R18: 17 | S18: 18 | T18: 19 | U18: 20 | V18: 21 | W18: 22 | X18: 23 | Y18: 24 | Z18: 25 | AA18: 26 | AB18: 27 | AC18: 28 | AD18: 29 | AE18: 30
A19: µ'' | B19: =csinterpolate(CSTableU2,'FT240-61x2 12t'!B18*1000000) -> 0.62 | C19: =csinterpolate(CSTableU2,'FT240-61x2 12t'!C18*1000000) -> 0.758194311 | D19: =csinterpolate(CSTableU2,'FT240-61x2 12t'!D18*1000000) -> 0.7788709119 | E19: =csinterpolate(CSTableU2,'FT240-61x2 12t'!E18*1000000) -> 0.8351114376 | F19: =csinterpolate(CSTableU2,'FT240-61x2 12t'!F18*1000000) -> 0.93 | G19: =csinterpolate(CSTableU2,'FT240-61x2 12t'!G18*1000000) -> 1.036969921 | H19: =csinterpolate(CSTableU2,'FT240-61x2 12t'!H18*1000000) -> 1.159470753 | I19: =csinterpolate(CSTableU2,'FT240-61x2 12t'!I18*1000000) -> 1.392643692 | J19: =csinterpolate(CSTableU2,'FT240-61x2 12t'!J18*1000000) -> 1.633103561 | K19: =csinterpolate(CSTableU2,'FT240-61x2 12t'!K18*1000000) -> 2.02 | L19: =csinterpolate(CSTableU2,'FT240-61x2 12t'!L18*1000000) -> 2.509601023 | M19: =csinterpolate(CSTableU2,'FT240-61x2 12t'!M18*1000000) -> 3.182775641 | N19: =csinterpolate(CSTableU2,'FT240-61x2 12t'!N18*1000000) -> 4.186258852 | O19: =csinterpolate(CSTableU2,'FT240-61x2 12t'!O18*1000000) -> 5.569980087 | P19: =csinterpolate(CSTableU2,'FT240-61x2 12t'!P18*1000000) -> 7.559670889 | Q19: =csinterpolate(CSTableU2,'FT240-61x2 12t'!Q18*1000000) -> 10.36476207 | R19: =csinterpolate(CSTableU2,'FT240-61x2 12t'!R18*1000000) -> 14.07154078 | S19: =csinterpolate(CSTableU2,'FT240-61x2 12t'!S18*1000000) -> 19.17655116 | T19: =csinterpolate(CSTableU2,'FT240-61x2 12t'!T18*1000000) -> 25.39136867 | U19: =csinterpolate(CSTableU2,'FT240-61x2 12t'!U18*1000000) -> 32.08965452 | V19: =csinterpolate(CSTableU2,'FT240-61x2 12t'!V18*1000000) -> 39.79460805 | W19: =csinterpolate(CSTableU2,'FT240-61x2 12t'!W18*1000000) -> 47.42194392 | X19: =csinterpolate(CSTableU2,'FT240-61x2 12t'!X18*1000000) -> 54.05909787 | Y19: =csinterpolate(CSTableU2,'FT240-61x2 12t'!Y18*1000000) -> 59.96478192 | Z19: =csinterpolate(CSTableU2,'FT240-61x2 12t'!Z18*1000000) -> 65.05078817 | AA19: =csinterpolate(CSTableU2,'FT240-61x2 12t'!AA18*1000000) -> 69.19723667 | AB19: =csinterpolate(CSTableU2,'FT240-61x2 12t'!AB18*1000000) -> 72.53648529 | AC19: =csinterpolate(CSTableU2,'FT240-61x2 12t'!AC18*1000000) -> 75.17052821 | AD19: =csinterpolate(CSTableU2,'FT240-61x2 12t'!AD18*1000000) -> 77.09502519 | AE19: =csinterpolate(CSTableU2,'FT240-61x2 12t'!AE18*1000000) -> 78.41918291
A20: µ' | B20: =csinterpolate(CSTableU1,'FT240-61x2 12t'!B18*1000000) -> 118.57 | C20: =csinterpolate(CSTableU1,'FT240-61x2 12t'!C18*1000000) -> 118.5396803 | D20: =csinterpolate(CSTableU1,'FT240-61x2 12t'!D18*1000000) -> 118.7454853 | E20: =csinterpolate(CSTableU1,'FT240-61x2 12t'!E18*1000000) -> 119.132245 | F20: =csinterpolate(CSTableU1,'FT240-61x2 12t'!F18*1000000) -> 119.69 | G20: =csinterpolate(CSTableU1,'FT240-61x2 12t'!G18*1000000) -> 120.4198067 | H20: =csinterpolate(CSTableU1,'FT240-61x2 12t'!H18*1000000) -> 121.368694 | I20: =csinterpolate(CSTableU1,'FT240-61x2 12t'!I18*1000000) -> 122.503407 | J20: =csinterpolate(CSTableU1,'FT240-61x2 12t'!J18*1000000) -> 123.8652264 | K20: =csinterpolate(CSTableU1,'FT240-61x2 12t'!K18*1000000) -> 125.48 | L20: =csinterpolate(CSTableU1,'FT240-61x2 12t'!L18*1000000) -> 127.4020954 | M20: =csinterpolate(CSTableU1,'FT240-61x2 12t'!M18*1000000) -> 129.5264894 | N20: =csinterpolate(CSTableU1,'FT240-61x2 12t'!N18*1000000) -> 132.2910455 | O20: =csinterpolate(CSTableU1,'FT240-61x2 12t'!O18*1000000) -> 135.1219891 | P20: =csinterpolate(CSTableU1,'FT240-61x2 12t'!P18*1000000) -> 138.3447211 | Q20: =csinterpolate(CSTableU1,'FT240-61x2 12t'!Q18*1000000) -> 141.865299 | R20: =csinterpolate(CSTableU1,'FT240-61x2 12t'!R18*1000000) -> 145.371705 | S20: =csinterpolate(CSTableU1,'FT240-61x2 12t'!S18*1000000) -> 148.6956574 | T20: =csinterpolate(CSTableU1,'FT240-61x2 12t'!T18*1000000) -> 151.3257257 | U20: =csinterpolate(CSTableU1,'FT240-61x2 12t'!U18*1000000) -> 152.6542534 | V20: =csinterpolate(CSTableU1,'FT240-61x2 12t'!V18*1000000) -> 152.5522168 | W20: =csinterpolate(CSTableU1,'FT240-61x2 12t'!W18*1000000) -> 151.0175455 | X20: =csinterpolate(CSTableU1,'FT240-61x2 12t'!X18*1000000) -> 148.2006761 | Y20: =csinterpolate(CSTableU1,'FT240-61x2 12t'!Y18*1000000) -> 144.4061007 | Z20: =csinterpolate(CSTableU1,'FT240-61x2 12t'!Z18*1000000) -> 139.9514163 | AA20: =csinterpolate(CSTableU1,'FT240-61x2 12t'!AA18*1000000) -> 135.1139856 | AB20: =csinterpolate(CSTableU1,'FT240-61x2 12t'!AB18*1000000) -> 130.0795701 | AC20: =csinterpolate(CSTableU1,'FT240-61x2 12t'!AC18*1000000) -> 125.0599136 | AD20: =csinterpolate(CSTableU1,'FT240-61x2 12t'!AD18*1000000) -> 120.32684 | AE20: =csinterpolate(CSTableU1,'FT240-61x2 12t'!AE18*1000000) -> 115.9602593
A21: Rl | B21: =B19/$B$13*$B$16*B18*1000000 -> 1.05959637 | C21: 2.591548193 | D21: 3.99333286 | E21: 5.708909987 | F21: 7.946972777 | G21: 10.63325385 | H21: 13.87096291 | I21: 19.04051873 | J21: 25.11915395 | K21: 34.52233335 | L21: 47.17871853 | M21: 65.27337129 | N21: 93.00754983 | O21: 133.2694025 | P21: 193.7951573 | Q21: 283.4184328 | R21: 408.8267904 | S21: 589.9181807 | T21: 824.4958701 | U21: 1096.841337 | V21: 1428.210753 | W21: 1782.997794 | X21: 2124.933789 | Y21: 2459.553494 | Z21: 2779.337864 | AA21: 3074.757518 | AB21: 3347.102752 | AC21: 3597.11569 | AD21: 3820.965575 | AE21: 4020.613624
A22: Xl | B22: =B20/$B$13*$B$16*B18*1000000 -> 202.6392607 | C22: 405.174887 | D22: 608.8175093 | E22: 814.4006091 | F22: 1022.766851 | G22: 1234.803775 | H22: 1451.956118 | I22: 1674.892457 | J22: 1905.200482 | K22: 2144.486331 | L22: 2395.068994 | M22: 2656.370284 | N22: 2939.155567 | O22: 3232.97866 | P22: 3546.521718 | Q22: 3879.224668 | R22: 4223.549397 | S22: 4574.246484 | T22: 4913.773554 | U22: 5217.802993 | V22: 5475.031094 | W22: 5678.045397 | X22: 5825.413975 | Y22: 5923.052136 | Z22: 5979.516641 | AA22: 6003.74759 | AB22: 6002.354334 | AC22: 5984.459444 | AD22: 5963.610653 | AE22: 5945.374349
A23: Yl | B23: =IMDIV(1,COMPLEX(B21,B22)) -> 0.0000258036654750886-0.00493474292803425i | C23: 0.000015785432424327-0.00246796907563487i | D23: 0.0000107731463513521-0.00164245765600084i | E23: 8.60707674669523E-06-0.00122783658536797i | F23: 7.59665176509762E-06-0.000977680913725304i | G23: 6.97329570168719E-06-0.000809785224023455i | H23: 6.57900163262727E-06-0.000688663197428852i | I23: 6.78654604092552E-06-0.000596976108366384i | J23: 6.91907685509027E-06-0.000524787920284912i | K23: 7.50483318828291E-06-0.000466191321022643i | L23: 0.0000082213209021534-0.000417362560827745i | M23: 9.24478187307481E-06-0.000376226374746669i | N23: 0.0000107556927633483-0.000339893420646094i | O23: 0.0000127287990317374-0.00030878757507923i | P23: 0.0000153618255600062-0.000281126983498281i | Q23: 0.0000187338135368766-0.000256414767660662i | R23: 0.0000227056504588905-0.000234569843659512i | S23: 0.0000277324909647048-0.000215038717940778i | T23: 0.0000332123692465761-0.000197936784857781i | U23: 0.0000385824161805272-0.000183541082770767i | V23: 0.00004460962774574-0.000171010544764343i | W23: 0.0000503397516852797-0.000160309449834546i | X23: 0.0000552637202355052-0.000151503096159229i | Y23: 0.0000597966664345032-0.000144001248094671i | Z23: 0.0000639231869127288-0.00013752547498632i | AA23: 0.0000675783969270064-0.000131953051686869i | AB23: 0.0000708661183906321-0.000127084103607533i | AC23: 0.000073782453920612-0.000122750598329064i | AD23: 0.0000761688227882279-0.000118881260265472i | AE23: 0.0000780507531765019-0.000115415453780732i
A24: Yc | B24: =COMPLEX(0,2*PI()*B18*1000000*$B$9*0.000000000001) -> 0.0000251327412287183i | C24: 0.0000502654824574367i | D24: 0.000075398223686155i | E24: 0.000100530964914873i | F24: 0.000125663706143592i | G24: 0.00015079644737231i | H24: 0.000175929188601028i | I24: 0.000201061929829747i | J24: 0.000226194671058465i | K24: 0.000251327412287183i | L24: 0.000276460153515902i | M24: 0.00030159289474462i | N24: 0.000326725635973338i | O24: 0.000351858377202057i | P24: 0.000376991118430775i | Q24: 0.000402123859659493i | R24: 0.000427256600888212i | S24: 0.00045238934211693i | T24: 0.000477522083345648i | U24: 0.000502654824574367i | V24: 0.000527787565803085i | W24: 0.000552920307031803i | X24: 0.000578053048260522i | Y24: 0.00060318578948924i | Z24: 0.000628318530717959i | AA24: 0.000653451271946677i | AB24: 0.000678584013175395i | AC24: 0.000703716754404114i | AD24: 0.000728849495632832i | AE24: 0.00075398223686155i
A25: Z | B25: =IMDIV(1,IMSUM(B23,B24)) -> 1.07047217704759+203.676532320518i | C25: 2.70042337314863+413.59800079345i | D25: 4.38683296959807+638.107731835917i | E25: 6.77246882575845+887.019181576637i | F25: 10.4638369336852+1173.59191924394i | G25: 16.0558542929518+1517.30662677066i | H25: 25.0209761445473+1950.00793733743i | I25: 43.2831739317444+2525.05798211721i | J25: 77.5630810056849+3347.24022619624i | K25: 162.362073458803+4648.43772786562i | L25: 412.694568752771+7073.03107540265i | M25: 1634.61796688799+13196.333782416i | N25: 37207.2123276077+45551.3718161405i | O25: 6310.39415212389-21352.6615641817i | P25: 1629.74316953173-10170.2703561514i | Q25: 868.025708835576-6751.3876775332i | R25: 603.172126274745-5118.69418905428i | S25: 485.645347471779-4156.43248554099i | T25: 418.972499332108-3526.95558736903i | U25: 373.418515201784-3088.53077233997i | V25: 345.062465133164-2759.72619821405i | W25: 321.295601434537-2505.85545756295i | X25: 298.724523029513-2305.68862260301i | Y25: 278.868434358233-2141.45840856305i | Z25: 260.949313354419-2003.53138004741i | AA25: 244.382428739949-1885.88376531498i | AB25: 229.211002241455-1783.78398420693i | AC25: 215.130817939237-1693.94913980387i | AD25: 201.577914064288-1614.25790802467i | AE25: 188.592412099863-1542.95564112913i
A26: R | B26: =IMREAL(B25) -> 1.070472177 | C26: 2.700423373 | D26: 4.38683297 | E26: 6.772468826 | F26: 10.46383693 | G26: 16.05585429 | H26: 25.02097614 | I26: 43.28317393 | J26: 77.56308101 | K26: 162.3620735 | L26: 412.6945688 | M26: 1634.617967 | N26: 37207.21233 | O26: 6310.394152 | P26: 1629.74317 | Q26: 868.0257088 | R26: 603.1721263 | S26: 485.6453475 | T26: 418.9724993 | U26: 373.4185152 | V26: 345.0624651 | W26: 321.2956014 | X26: 298.724523 | Y26: 278.8684344 | Z26: 260.9493134 | AA26: 244.3824287 | AB26: 229.2110022 | AC26: 215.1308179 | AD26: 201.5779141 | AE26: 188.5924121
A27: X | B27: =IMAGINARY(B25) -> 203.6765323 | C27: 413.5980008 | D27: 638.1077318 | E27: 887.0191816 | F27: 1173.591919 | G27: 1517.306627 | H27: 1950.007937 | I27: 2525.057982 | J27: 3347.240226 | K27: 4648.437728 | L27: 7073.031075 | M27: 13196.33378 | N27: 45551.37182 | O27: -21352.66156 | P27: -10170.27036 | Q27: -6751.387678 | R27: -5118.694189 | S27: -4156.432486 | T27: -3526.955587 | U27: -3088.530772 | V27: -2759.726198 | W27: -2505.855458 | X27: -2305.688623 | Y27: -2141.458409 | Z27: -2003.53138 | AA27: -1885.883765 | AB27: -1783.783984 | AC27: -1693.94914 | AD27: -1614.257908 | AE27: -1542.955641
A28: |Z| | B28: =IMABS(B25) -> 203.6793454 | C28: 413.6068164 | D28: 638.1228109 | E28: 887.0450354 | F28: 1173.638567 | G28: 1517.391574 | H28: 1950.168456 | I28: 2525.428923 | J28: 3348.138761 | K28: 4651.27238 | L28: 7085.06072 | M28: 13297.18772 | N28: 58815.84925 | O28: 22265.60644 | P28: 10300.02242 | Q28: 6806.959983 | R28: 5154.109701 | S28: 4184.708163 | T28: 3551.753605 | U28: 3111.022938 | V28: 2781.214985 | W28: 2526.369418 | X28: 2324.959433 | Y28: 2159.539701 | Z28: 2020.453547 | AA28: 1901.652005 | AB28: 1798.450162 | AC28: 1707.555257 | AD28: 1626.795085 | AE28: 1554.438551
A32: Module | B32: Version | C32: Date
A33: CubicSpline | B33: =CubicSpline_version("v") -> 1.04 | C33: =CubicSpline_version("d") -> 2014-03-07
A35: Copyright: Owen Duffy 2010. All rights reserved.

Sheet FT240-61x3 13t
A1: Calculate impedance of ferrite cored inductor
A3: Reference:
A4: A method for estimating the impedance of a ferrite cored toroidal inductor at RF
A6: Inputs:
A7: Al (nH for 1t) | B7: =170*3 -> 510
A8: N | B8: 12
A9: Cs (pF) | B9: 25
A11: Constants:
A12: Mix | B12: =Mix!B1 -> #61
A13: µi | B13: =Mix!B2 -> 125
A15: Calculated values:
A16: 2*pi*N^2*Al | B16: =2*PI()*$B$8^2*$B$7*0.000000001 -> 0.000461437129
A18: f (MHz) | B18: 1 | C18: =B18+1 -> 2 | D18: 3 | E18: 4 | F18: 5 | G18: 6 | H18: 7 | I18: 8 | J18: 9 | K18: 10 | L18: 11 | M18: 12 | N18: 13 | O18: 14 | P18: 15 | Q18: 16 | R18: 17 | S18: 18 | T18: 19 | U18: 20 | V18: 21 | W18: 22 | X18: 23 | Y18: 24 | Z18: 25 | AA18: 26 | AB18: 27 | AC18: 28 | AD18: 29 | AE18: 30
A19: µ'' | B19: =csinterpolate(CSTableU2,'FT240-61x3 13t'!B18*1000000) -> 0.62 | C19: =csinterpolate(CSTableU2,'FT240-61x3 13t'!C18*1000000) -> 0.758194311 | D19: =csinterpolate(CSTableU2,'FT240-61x3 13t'!D18*1000000) -> 0.7788709119 | E19: =csinterpolate(CSTableU2,'FT240-61x3 13t'!E18*1000000) -> 0.8351114376 | F19: =csinterpolate(CSTableU2,'FT240-61x3 13t'!F18*1000000) -> 0.93 | G19: =csinterpolate(CSTableU2,'FT240-61x3 13t'!G18*1000000) -> 1.036969921 | H19: =csinterpolate(CSTableU2,'FT240-61x3 13t'!H18*1000000) -> 1.159470753 | I19: =csinterpolate(CSTableU2,'FT240-61x3 13t'!I18*1000000) -> 1.392643692 | J19: =csinterpolate(CSTableU2,'FT240-61x3 13t'!J18*1000000) -> 1.633103561 | K19: =csinterpolate(CSTableU2,'FT240-61x3 13t'!K18*1000000) -> 2.02 | L19: =csinterpolate(CSTableU2,'FT240-61x3 13t'!L18*1000000) -> 2.509601023 | M19: =csinterpolate(CSTableU2,'FT240-61x3 13t'!M18*1000000) -> 3.182775641 | N19: =csinterpolate(CSTableU2,'FT240-61x3 13t'!N18*1000000) -> 4.186258852 | O19: =csinterpolate(CSTableU2,'FT240-61x3 13t'!O18*1000000) -> 5.569980087 | P19: =csinterpolate(CSTableU2,'FT240-61x3 13t'!P18*1000000) -> 7.559670889 | Q19: =csinterpolate(CSTableU2,'FT240-61x3 13t'!Q18*1000000) -> 10.36476207 | R19: =csinterpolate(CSTableU2,'FT240-61x3 13t'!R18*1000000) -> 14.07154078 | S19: =csinterpolate(CSTableU2,'FT240-61x3 13t'!S18*1000000) -> 19.17655116 | T19: =csinterpolate(CSTableU2,'FT240-61x3 13t'!T18*1000000) -> 25.39136867 | U19: =csinterpolate(CSTableU2,'FT240-61x3 13t'!U18*1000000) -> 32.08965452 | V19: =csinterpolate(CSTableU2,'FT240-61x3 13t'!V18*1000000) -> 39.79460805 | W19: =csinterpolate(CSTableU2,'FT240-61x3 13t'!W18*1000000) -> 47.42194392 | X19: =csinterpolate(CSTableU2,'FT240-61x3 13t'!X18*1000000) -> 54.05909787 | Y19: =csinterpolate(CSTableU2,'FT240-61x3 13t'!Y18*1000000) -> 59.96478192 | Z19: =csinterpolate(CSTableU2,'FT240-61x3 13t'!Z18*1000000) -> 65.05078817 | AA19: =csinterpolate(CSTableU2,'FT240-61x3 13t'!AA18*1000000) -> 69.19723667 | AB19: =csinterpolate(CSTableU2,'FT240-61x3 13t'!AB18*1000000) -> 72.53648529 | AC19: =csinterpolate(CSTableU2,'FT240-61x3 13t'!AC18*1000000) -> 75.17052821 | AD19: =csinterpolate(CSTableU2,'FT240-61x3 13t'!AD18*1000000) -> 77.09502519 | AE19: =csinterpolate(CSTableU2,'FT240-61x3 13t'!AE18*1000000) -> 78.41918291
A20: µ' | B20: =csinterpolate(CSTableU1,'FT240-61x3 13t'!B18*1000000) -> 118.57 | C20: =csinterpolate(CSTableU1,'FT240-61x3 13t'!C18*1000000) -> 118.5396803 | D20: =csinterpolate(CSTableU1,'FT240-61x3 13t'!D18*1000000) -> 118.7454853 | E20: =csinterpolate(CSTableU1,'FT240-61x3 13t'!E18*1000000) -> 119.132245 | F20: =csinterpolate(CSTableU1,'FT240-61x3 13t'!F18*1000000) -> 119.69 | G20: =csinterpolate(CSTableU1,'FT240-61x3 13t'!G18*1000000) -> 120.4198067 | H20: =csinterpolate(CSTableU1,'FT240-61x3 13t'!H18*1000000) -> 121.368694 | I20: =csinterpolate(CSTableU1,'FT240-61x3 13t'!I18*1000000) -> 122.503407 | J20: =csinterpolate(CSTableU1,'FT240-61x3 13t'!J18*1000000) -> 123.8652264 | K20: =csinterpolate(CSTableU1,'FT240-61x3 13t'!K18*1000000) -> 125.48 | L20: =csinterpolate(CSTableU1,'FT240-61x3 13t'!L18*1000000) -> 127.4020954 | M20: =csinterpolate(CSTableU1,'FT240-61x3 13t'!M18*1000000) -> 129.5264894 | N20: =csinterpolate(CSTableU1,'FT240-61x3 13t'!N18*1000000) -> 132.2910455 | O20: =csinterpolate(CSTableU1,'FT240-61x3 13t'!O18*1000000) -> 135.1219891 | P20: =csinterpolate(CSTableU1,'FT240-61x3 13t'!P18*1000000) -> 138.3447211 | Q20: =csinterpolate(CSTableU1,'FT240-61x3 13t'!Q18*1000000) -> 141.865299 | R20: =csinterpolate(CSTableU1,'FT240-61x3 13t'!R18*1000000) -> 145.371705 | S20: =csinterpolate(CSTableU1,'FT240-61x3 13t'!S18*1000000) -> 148.6956574 | T20: =csinterpolate(CSTableU1,'FT240-61x3 13t'!T18*1000000) -> 151.3257257 | U20: =csinterpolate(CSTableU1,'FT240-61x3 13t'!U18*1000000) -> 152.6542534 | V20: =csinterpolate(CSTableU1,'FT240-61x3 13t'!V18*1000000) -> 152.5522168 | W20: =csinterpolate(CSTableU1,'FT240-61x3 13t'!W18*1000000) -> 151.0175455 | X20: =csinterpolate(CSTableU1,'FT240-61x3 13t'!X18*1000000) -> 148.2006761 | Y20: =csinterpolate(CSTableU1,'FT240-61x3 13t'!Y18*1000000) -> 144.4061007 | Z20: =csinterpolate(CSTableU1,'FT240-61x3 13t'!Z18*1000000) -> 139.9514163 | AA20: =csinterpolate(CSTableU1,'FT240-61x3 13t'!AA18*1000000) -> 135.1139856 | AB20: =csinterpolate(CSTableU1,'FT240-61x3 13t'!AB18*1000000) -> 130.0795701 | AC20: =csinterpolate(CSTableU1,'FT240-61x3 13t'!AC18*1000000) -> 125.0599136 | AD20: =csinterpolate(CSTableU1,'FT240-61x3 13t'!AD18*1000000) -> 120.32684 | AE20: =csinterpolate(CSTableU1,'FT240-61x3 13t'!AE18*1000000) -> 115.9602593
A21: Rl | B21: =B19/$B$13*$B$16*B18*1000000 -> 2.28872816 | C21: 5.597744097 | D21: 8.625598978 | E21: 12.33124557 | F21: 17.1654612 | G21: 22.96782832 | H21: 29.9612799 | I21: 41.12752045 | J21: 54.25737252 | K21: 74.56824004 | L21: 101.906032 | M21: 140.990482 | N21: 200.8963076 | O21: 287.8619094 | P21: 418.5975397 | Q21: 612.1838148 | R21: 883.0658673 | S21: 1274.22327 | T21: 1780.911079 | U21: 2369.177288 | V21: 3084.935227 | W21: 3851.275234 | X21: 4589.856984 | Y21: 5312.635547 | Z21: 6003.369786 | AA21: 6641.476238 | AB21: 7229.741944 | AC21: 7769.769889 | AD21: 8253.285643 | AE21: 8684.525428
A22: Xl | B22: =B20/$B$13*$B$16*B18*1000000 -> 437.700803 | C22: 875.1777559 | D22: 1315.04582 | E22: 1759.105316 | F22: 2209.176399 | G22: 2667.176153 | H22: 3136.225215 | I22: 3617.767706 | J22: 4115.233041 | K22: 4632.090475 | L22: 5173.349027 | M22: 5737.759813 | N22: 6348.576024 | O22: 6983.233905 | P22: 7660.486912 | Q22: 8379.125283 | R22: 9122.866698 | S22: 9880.372405 | T22: 10613.75088 | U22: 11270.45447 | V22: 11826.06716 | W22: 12264.57806 | X22: 12582.89419 | Y22: 12793.79261 | Z22: 12915.75594 | AA22: 12968.09479 | AB22: 12965.08536 | AC22: 12926.4324 | AD22: 12881.39901 | AE22: 12842.00859
A23: Yl | B23: =IMDIV(1,COMPLEX(B21,B22)) -> 0.000011946141423652-0.00228460320742326i | C23: 7.30807056681806E-06-0.00114257827575689i | D23: 4.98756775525559E-06-0.000760397062963352i | E23: 3.98475775309964E-06-0.000568442863596284i | F23: 3.51696840976739E-06-0.000452630052650602i | G23: 3.22837763966998E-06-0.000374900566677526i | H23: 3.04583408917932E-06-0.00031882555436521i | I23: 3.14191946339144E-06-0.0002763778279474i | J23: 3.20327632180105E-06-0.000242957370502274i | K23: 3.47445980939023E-06-0.000215829315288261i | L23: 3.80616708433028E-06-0.000193223407790623i | M23: 4.27999160790501E-06-0.000174178877197532i | N23: 4.97948739043902E-06-0.000157358065113933i | O23: 5.89296251469326E-06-0.000142957210684829i | P23: 7.11195627778066E-06-0.000130151381249204i | Q23: 8.67306182262808E-06-0.00011871054058364i | R23: 0.0000105118752124493-0.000108597149842367i | S23: 0.0000128391161873633-0.0000995549620096197i | T23: 0.0000153760968734149-0.0000916374003971206i | U23: 0.0000178622297132069-0.0000849727235049846i | V23: 0.0000206526054378426-0.0000791715485020109i | W23: 0.000023305440595037-0.0000742173378863639i | X23: 0.0000255850556645857-0.0000701403222959393i | Y23: 0.0000276836418678257-0.0000666672444882736i | Z23: 0.0000295940680151524-0.0000636692013825556i | AA23: 0.0000312862948736142-0.0000610893757809581i | AB23: 0.0000328083881438113-0.0000588352331516356i | AC23: 0.0000341585434817646-0.0000568289807078999i | AD23: 0.0000352633438834387-0.0000550376204932738i | AE23: 0.0000361346079520842-0.0000534330804540427i
A24: Yc | B24: =COMPLEX(0,2*PI()*B18*1000000*$B$9*0.000000000001) -> 0.00015707963267949i | C24: 0.000314159265358979i | D24: 0.000471238898038469i | E24: 0.000628318530717959i | F24: 0.000785398163397448i | G24: 0.000942477796076938i | H24: 0.00109955742875643i | I24: 0.00125663706143592i | J24: 0.00141371669411541i | K24: 0.0015707963267949i | L24: 0.00172787595947439i | M24: 0.00188495559215388i | N24: 0.00204203522483337i | O24: 0.00219911485751285i | P24: 0.00235619449019234i | Q24: 0.00251327412287183i | R24: 0.00267035375555132i | S24: 0.00282743338823081i | T24: 0.0029845130209103i | U24: 0.00314159265358979i | V24: 0.00329867228626928i | W24: 0.00345575191894877i | X24: 0.00361283155162826i | Y24: 0.00376991118430775i | Z24: 0.00392699081698724i | AA24: 0.00408407044966673i | AB24: 0.00424115008234622i | AC24: 0.00439822971502571i | AD24: 0.0045553093477052i | AE24: 0.00471238898038469i
A25: Z | B25: =IMDIV(1,IMSUM(B23,B24)) -> 2.63915682018781+470.015225274211i | C25: 10.6480191319542+1207.02467105927i | D25: 59.6332802728418+3457.28634442632i | E25: 1106.57782199675-16627.6319464002i | F25: 31.7567870815723-3004.76001182609i | G25: 10.0212143727553-1761.8177684713i | H25: 4.99684424583781-1280.82996639685i | I25: 3.26970599370146-1020.12783219431i | J25: 2.33698487804192-854.140124125211i | K25: 1.89246123858817-738.020495131874i | L25: 1.61608815114596-651.609283027167i | M25: 1.46235743729944-584.526158428545i | N25: 1.40186976936888-530.591148860754i | O25: 1.39385402279595-486.340037016692i | P25: 1.43521678248709-449.223013149893i | Q25: 1.51256483081671-417.607153482284i | R25: 1.60175893293304-390.350574399412i | S25: 1.72534315885133-366.577131336438i | T25: 1.83727562967815-345.667038977136i | U25: 1.91178019550517-327.147592509233i | V25: 1.99241553447029-310.594384929873i | W25: 2.03802273044942-295.709678257426i | X25: 2.03843614419396-282.256561965814i | Y25: 2.0185258316907-270.018431435688i | Z25: 1.98270205212557-258.829427956934i | AA25: 1.93300015998976-248.556855034162i | AB25: 1.8755330527709-239.087324326191i | AC25: 1.81222746654903-230.326145440801i | AD25: 1.74108250949936-222.195161585995i | AE25: 1.66463884136759-214.627455250858i
A26: R | B26: =IMREAL(B25) -> 2.63915682 | C26: 10.64801913 | D26: 59.63328027 | E26: 1106.577822 | F26: 31.75678708 | G26: 10.02121437 | H26: 4.996844246 | I26: 3.269705994 | J26: 2.336984878 | K26: 1.892461239 | L26: 1.616088151 | M26: 1.462357437 | N26: 1.401869769 | O26: 1.393854023 | P26: 1.435216782 | Q26: 1.512564831 | R26: 1.601758933 | S26: 1.725343159 | T26: 1.83727563 | U26: 1.911780196 | V26: 1.992415534 | W26: 2.03802273 | X26: 2.038436144 | Y26: 2.018525832 | Z26: 1.982702052 | AA26: 1.93300016 | AB26: 1.875533053 | AC26: 1.812227467 | AD26: 1.741082509 | AE26: 1.664638841
A27: X | B27: =IMAGINARY(B25) -> 470.0152253 | C27: 1207.024671 | D27: 3457.286344 | E27: -16627.63195 | F27: -3004.760012 | G27: -1761.817768 | H27: -1280.829966 | I27: -1020.127832 | J27: -854.1401241 | K27: -738.0204951 | L27: -651.609283 | M27: -584.5261584 | N27: -530.5911489 | O27: -486.340037 | P27: -449.2230131 | Q27: -417.6071535 | R27: -390.3505744 | S27: -366.5771313 | T27: -345.667039 | U27: -327.1475925 | V27: -310.5943849 | W27: -295.7096783 | X27: -282.256562 | Y27: -270.0184314 | Z27: -258.829428 | AA27: -248.556855 | AB27: -239.0873243 | AC27: -230.3261454 | AD27: -222.1951616 | AE27: -214.6274553
A28: |Z| | B28: =IMABS(B25) -> 470.0226347 | C28: 1207.071637 | D28: 3457.800601 | E28: 16664.41294 | F28: 3004.927823 | G28: 1761.846269 | H28: 1280.839713 | I28: 1020.133072 | J28: 854.1433212 | K28: 738.0229215 | L28: 651.6112871 | M28: 584.5279877 | N28: 530.5930008 | O28: 486.3420344 | P28: 449.2253058 | Q28: 417.6098927 | R28: 390.3538607 | S28: 366.5811916 | T28: 345.6719216 | U28: 327.1531785 | V28: 310.6007754 | W28: 295.7167012 | X28: 282.2639226 | Y28: 270.0259761 | Z28: 258.8370219 | AA28: 248.5643713 | AB28: 239.0946806 | AC28: 230.3332747 | AD28: 222.2019829 | AE28: 214.6339106
A32: Module | B32: Version | C32: Date
A33: CubicSpline | B33: =CubicSpline_version("v") -> 1.04 | C33: =CubicSpline_version("d") -> 2014-03-07
A35: Copyright: Owen Duffy 2010. All rights reserved.

Sheet Mix
A1: Mix | B1: #61
A2: µi | B2: 125
A3: Fetched | B3: 2019-04-13
A5: # #61 mix u' | E5: CSTable | J5: # #61 mix u'' | N5: CSTable
A6: 10000 | B6: 118.03 | E6: =cstable(A6:A111,B6:B111) -> 10000 | F6: 118.03 | G6: 0 | J6: 10000 | K6: 0.45 | N6: =cstable([1]Mix!J6:J111,[1]Mix!K6:K111) -> 10000 | O6: 0.45 | P6: 0 | S6: 1000000 | T6: =csinterpolate(CSTableU1,S6) -> 118.57 | U6: =csinterp1($A$6:$A$36,$B$6:$B$36,S6) -> 118.57
A7: 50000 | B7: 117.55 | E7: 50000 | F7: 117.55 | G7: 4.369198619e-10 | J7: 50000 | K7: 0.45 | N7: 50000 | O7: 0.45 | P7: -2.700644277e-13 | S7: 5000000 | T7: =csinterpolate(CSTableU1,S7) -> 119.69 | U7: =csinterp1($A$6:$A$36,$B$6:$B$36,S7) -> 119.69
A8: 100000 | B8: 117.59 | E8: 100000 | F8: 117.59 | G8: -3.691150299e-11 | J8: 100000 | K8: 0.45 | N8: 100000 | O8: 0.45 | P8: 9.722319396e-13 | S8: 20000000 | T8: =csinterpolate(CSTableU1,S8) -> 152.6542534 | U8: =csinterp1($A$6:$A$36,$B$6:$B$36,S8) -> 90.6401497
A9: 300000 | B9: 117.89 | E9: 300000 | F9: 117.89 | G9: 4.048791997e-12 | J9: 300000 | K9: 0.46 | N9: 300000 | O9: 0.46 | P9: -8.630637421e-13
A10: 500000 | B10: 117.95 | E10: 500000 | F10: 117.95 | G10: -1.5283665e-11 | J10: 500000 | K10: 0.48 | N10: 500000 | O10: 0.48 | P10: 3.980023029e-12
A11: 700000 | B11: 117.85 | E11: 700000 | F11: 117.85 | G11: 3.308586799e-11 | J11: 700000 | K11: 0.58 | N11: 700000 | O11: 0.58 | P11: -3.057028373e-12
A12: 1000000 | B12: 118.57 | E12: 1000000 | F12: 118.57 | G12: -4.209711662e-11 | J12: 1000000 | K12: 0.62 | N12: 1000000 | O12: 0.62 | P12: 2.034125588e-13
A13: 1080000 | B13: 118.5 | E13: 1080000 | F13: 118.5 | G13: 3.022560296e-11 | J13: 1080000 | K13: 0.62 | N13: 1080000 | O13: 0.62 | P13: -4.685629079e-13
A14: 1160000 | B14: 118.51 | E14: 1160000 | F14: 118.51 | G14: -3.80529521e-12 | J14: 1160000 | K14: 0.62 | N14: 1160000 | O14: 0.62 | P14: 1.670839073e-12
A15: 1240000 | B15: 118.53 | E15: 1240000 | F15: 118.53 | G15: -5.629422117e-12 | J15: 1240000 | K15: 0.63 | N15: 1240000 | O15: 0.63 | P15: 3.160206616e-12
A16: 1320000 | B16: 118.52 | E16: 1320000 | F16: 118.52 | G16: -1.802016322e-12 | J16: 1320000 | K16: 0.65 | N16: 1320000 | O16: 0.65 | P16: -4.936665538e-12
A17: 1420000 | B17: 118.49 | E17: 1420000 | F17: 118.49 | G17: 4.907964519e-13 | J17: 1420000 | K17: 0.66 | N17: 1420000 | O17: 0.66 | P17: 6.243830644e-12
A18: 1530000 | B18: 118.47 | E18: 1530000 | F18: 118.47 | G18: 6.210527559e-12 | J18: 1530000 | K18: 0.7 | N18: 1530000 | O18: 0.7 | P18: -4.97203759e-12
A19: 1640000 | B19: 118.5 | E19: 1640000 | F19: 118.5 | G19: -5.395182576e-13 | J19: 1640000 | K19: 0.72 | N19: 1640000 | O19: 0.72 | P19: 3.726964345e-12
A20: 1750000 | B20: 118.53 | E20: 1750000 | F20: 118.53 | G20: -4.052454528e-12 | J20: 1750000 | K20: 0.75 | N20: 1750000 | O20: 0.75 | P20: -4.977142104e-12
A21: 1870000 | B21: 118.53 | E21: 1870000 | F21: 118.53 | G21: 2.392603792e-12 | J21: 1870000 | K21: 0.75 | N21: 1870000 | O21: 0.75 | P21: 2.026297112e-12
A22: 2020000 | B22: 118.54 | E22: 2020000 | F22: 118.54 | G22: -2.704743362e-12 | J22: 2020000 | K22: 0.76 | N22: 2020000 | O22: 0.76 | P22: -6.462892518e-13
A23: 2160000 | B23: 118.54 | E23: 2160000 | F23: 118.54 | G23: 5.784718436e-12 | J23: 2160000 | K23: 0.76 | N23: 2160000 | O23: 0.76 | P23: -2.350691433e-12
A24: 2310000 | B24: 118.59 | E24: 2310000 | F24: 118.59 | G24: -6.509817482e-12 | J24: 2310000 | K24: 0.74 | N24: 2310000 | O24: 0.74 | P24: 4.359210177e-12
A25: 2480000 | B25: 118.58 | E25: 2480000 | F25: 118.58 | G25: 5.562554393e-12 | J25: 2480000 | K25: 0.77 | N25: 2480000 | O25: 0.77 | P25: -3.402748641e-12
A26: 2670000 | B26: 118.65 | E26: 2670000 | F26: 118.65 | G26: -1.762645781e-12 | J26: 2670000 | K26: 0.76 | N26: 2670000 | O26: 0.76 | P26: 1.759475202e-12
A27: 2860000 | B27: 118.71 | E27: 2860000 | F27: 118.71 | G27: -1.740211295e-13 | J27: 2860000 | K27: 0.77 | N27: 2860000 | O27: 0.77 | P27: -3.110524434e-13
A28: 3050000 | B28: 118.76 | E28: 3050000 | F28: 118.76 | G28: 7.966804376e-13 | J28: 3050000 | K28: 0.78 | N28: 3050000 | O28: 0.78 | P28: -5.152654282e-13
A29: 3270000 | B29: 118.84 | E29: 3270000 | F29: 118.84 | G29: -7.883241295e-14 | J29: 3270000 | K29: 0.78 | N29: 3270000 | O29: 0.78 | P29: 7.537642804e-13
A30: 3530000 | B30: 118.94 | E30: 3530000 | F30: 118.94 | G30: 1.010905616e-13 | J30: 3530000 | K30: 0.8 | N30: 3530000 | O30: 0.8 | P30: -5.719878979e-13
A31: 3780000 | B31: 119.04 | E31: 3780000 | F31: 119.04 | G31: 3.87669872e-14 | J31: 3780000 | K31: 0.81 | N31: 3780000 | O31: 0.81 | P31: 6.636419257e-13
A32: 4040000 | B32: 119.15 | E32: 4040000 | F32: 119.15 | G32: 2.832560427e-13 | J32: 4040000 | K32: 0.84 | N32: 4040000 | O32: 0.84 | P32: -3.138849901e-13
A33: 4330000 | B33: 119.29 | E33: 4330000 | F33: 119.29 | G33: 1.256176621e-13 | J33: 4330000 | K33: 0.86 | N33: 4330000 | O33: 0.86 | P33: -3.647862085e-13
A34: 4660000 | B34: 119.47 | E34: 4660000 | F34: 119.47 | G34: 4.189860459e-13 | J34: 4660000 | K34: 0.87 | N34: 4660000 | O34: 0.87 | P34: 9.435958304e-13
A35: 5000000 | B35: 119.69 | E35: 5000000 | F35: 119.69 | G35: 1.979570135e-14 | J35: 5000000 | K35: 0.93 | N35: 5000000 | O35: 0.93 | P35: -7.853929893e-13
A36: 5340000 | B36: 119.92 | E36: 5340000 | F36: 119.92 | G36: 2.086229058e-14 | J36: 5340000 | K36: 0.95 | N36: 5340000 | O36: 0.95 | P36: 1.218515595e-13
A37: 5720000 | B37: 120.19 | E37: 5720000 | F37: 120.19 | G37: 4.409529696e-13 | J37: 5720000 | K37: 0.98 | N37: 5720000 | O37: 0.98 | P37: 5.587115915e-13
A38: 6170000 | B38: 120.57 | E38: 6170000 | F38: 120.57 | G38: 1.413314934e-13 | J38: 6170000 | K38: 1.07 | N38: 6170000 | O38: 1.07 | P38: -5.498867669e-13
A39: 6610000 | B39: 120.98 | E39: 6610000 | F39: 120.98 | G39: 1.687352948e-13 | J39: 6610000 | K39: 1.11 | N39: 6610000 | O39: 1.11 | P39: 1.655290325e-13
A40: 7050000 | B40: 121.42 | E40: 7050000 | F40: 121.42 | G40: 1.134793936e-13 | J40: 7050000 | K40: 1.17 | N40: 7050000 | O40: 1.17 | P40: 5.076053478e-13
A41: 7560000 | B41: 121.97 | E41: 7560000 | F41: 121.97 | G41: 3.543801131e-13 | J41: 7560000 | K41: 1.31 | N41: 7560000 | O41: 1.31 | P41: -4.086390779e-13
A42: 8170000 | B42: 122.72 | E42: 8170000 | F42: 122.72 | G42: 8.979508342e-14 | J42: 8170000 | K42: 1.42 | N42: 8170000 | O42: 1.42 | P42: 1.498052405e-13
A43: 8780000 | B43: 123.54 | E43: 8780000 | F43: 123.54 | G43: 4.151683895e-13 | J43: 8780000 | K43: 1.56 | N43: 8780000 | O43: 1.56 | P43: 2.931590457e-13
A44: 9390000 | B44: 124.47 | E44: 9390000 | F44: 124.47 | G44: 2.32481012e-14 | J44: 9390000 | K44: 1.78 | N44: 9390000 | O44: 1.78 | P44: -3.246561046e-14
A45: 10000000 | B45: 125.48 | E45: 10000000 | F45: 125.48 | G45: 7.818150186e-13 | J45: 10000000 | K45: 2.02 | N45: 10000000 | O45: 2.02 | P45: 1.591973493e-13
A46: 10700000 | B46: 126.84 | E46: 10700000 | F46: 126.84 | G46: -4.854572326e-13 | J46: 10700000 | K46: 2.35 | N46: 10700000 | O46: 2.35 | P46: 1.008895114e-13
A47: 11600000 | B47: 128.58 | E47: 11600000 | F47: 128.58 | G47: 1.054499749e-12 | J47: 11600000 | K47: 2.88 | N47: 11600000 | O47: 2.88 | P47: 3.005303597e-13
A48: 12400000 | B48: 130.59 | E48: 12400000 | F48: 130.59 | G48: 4.082654534e-13 | J48: 12400000 | K48: 3.54 | N48: 12400000 | O48: 3.54 | P48: 3.800786041e-13
A49: 13200000 | B49: 132.86 | E49: 13200000 | F49: 132.86 | G49: -2.500615627e-13 | J49: 13200000 | K49: 4.43 | N49: 13200000 | O49: 4.43 | P49: 3.354052238e-13
A50: 14200000 | B50: 135.72 | E50: 14200000 | F50: 135.72 | G50: 7.086092631e-13 | J50: 14200000 | K50: 5.91 | N50: 14200000 | O50: 5.91 | P50: 6.934783109e-13
A51: 15300000 | B51: 139.39 | E51: 15300000 | F51: 139.39 | G51: 1.200767962e-13 | J51: 15300000 | K51: 8.31 | N51: 15300000 | O51: 8.31 | P51: 8.753590558e-13
A52: 16400000 | B52: 143.28 | E52: 16400000 | F52: 143.28 | G52: -9.800735693e-14 | J52: 16400000 | K52: 11.73 | N52: 16400000 | O52: 11.73 | P52: 8.629367054e-13
A53: 17500000 | B53: 147.07 | E53: 17500000 | F53: 147.07 | G53: -2.23915137e-13 | J53: 17500000 | K53: 16.41 | N53: 17500000 | O53: 16.41 | P53: 1.920828007e-12
A54: 18700000 | B54: 150.66 | E54: 18700000 | F54: 150.66 | G54: -1.320757958e-12 | J54: 18700000 | K54: 23.49 | N54: 18700000 | O54: 23.49 | P54: 7.307338813e-14
A55: 20200000 | B55: 152.75 | E55: 20200000 | F55: 152.75 | G55: -1.459472575e-12 | J55: 20200000 | K55: 33.55 | N55: 20200000 | O55: 33.55 | P55: 1.426940064e-12
A56: 21600000 | B56: 151.8 | E56: 21600000 | F56: 151.8 | G56: -1.418107644e-12 | J56: 21600000 | K56: 44.49 | N56: 21600000 | O56: 44.49 | P56: -1.242962977e-12
A57: 23100000 | B57: 147.86 | E57: 23100000 | F57: 147.86 | G57: -9.468569935e-13 | J57: 23100000 | K57: 54.68 | N57: 23100000 | O57: 54.68 | P57: -6.094967395e-13
A58: 24800000 | B58: 140.88 | E58: 24800000 | F58: 140.88 | G58: -4.04851702e-13 | J58: 24800000 | K58: 64.11 | N58: 24800000 | O58: 64.11 | P58: -1.007307918e-12
A59: 26700000 | B59: 131.6 | E59: 26700000 | F59: 131.6 | G59: -7.651573522e-14 | J59: 26700000 | K59: 71.61 | N59: 26700000 | O59: 71.61 | P59: -6.891478675e-13
A60: 28600000 | B60: 122.17 | E60: 28600000 | F60: 122.17 | G60: 4.616071636e-13 | J60: 28600000 | K60: 76.41 | N60: 28600000 | O60: 76.41 | P60: -7.23635238e-13
A61: 30500000 | B61: 113.86 | E61: 30500000 | F61: 113.86 | G61: 9.158292556e-14 | J61: 30500000 | K61: 78.94 | N61: 30500000 | O61: 78.94 | P61: -1.891643662e-13
A62: 32700000 | B62: 105.12 | E62: 32700000 | F62: 105.12 | G62: 3.535036483e-13 | J62: 32700000 | K62: 80.56 | N62: 32700000 | O62: 80.56 | P62: -2.93289596e-13
A63: 35300000 | B63: 96.33 | E63: 35300000 | F63: 96.33 | G63: -1.668046478e-14 | J63: 35300000 | K63: 80.98 | N63: 35300000 | O63: 80.98 | P63: -8.354204697e-14
A64: 37800000 | B64: 88.56 | E64: 37800000 | F64: 88.56 | G64: 3.550586559e-13 | J64: 37800000 | K64: 80.56 | N64: 37800000 | O64: 80.56 | P64: -1.450195763e-13
A65: 40400000 | B65: 82.07 | E65: 40400000 | F65: 82.07 | G65: 3.506915193e-14 | J65: 40400000 | K65: 79.37 | N65: 40400000 | O65: 79.37 | P65: -1.926886567e-14
A66: 43300000 | B66: 75.64 | E66: 43300000 | F66: 75.64 | G66: 1.25710905e-13 | J66: 43300000 | K66: 77.69 | N66: 43300000 | O66: 77.69 | P66: -4.851717314e-14
A67: 46600000 | B67: 69.45 | E67: 46600000 | F67: 69.45 | G67: 1.17693048e-13 | J67: 46600000 | K67: 75.44 | N67: 46600000 | O67: 75.44 | P67: 1.286231377e-14
A68: 50000000 | B68: 64.33 | E68: 50000000 | F68: 64.33 | G68: 6.685838436e-14 | J68: 50000000 | K68: 73.15 | N68: 50000000 | O68: 73.15 | P68: 1.102479033e-14
A69: 53400000 | B69: 60.03 | E69: 53400000 | F69: 60.03 | G69: 4.047895087e-14 | J69: 53400000 | K69: 70.95 | N69: 53400000 | O69: 70.95 | P69: -1.024867234e-14
A70: 57200000 | B70: 55.88 | E70: 57200000 | F70: 55.88 | G70: 5.931271467e-14 | J70: 57200000 | K70: 68.5 | N70: 57200000 | O70: 68.5 | P70: 3.263907451e-14
A71: 61700000 | B71: 51.86 | E71: 61700000 | F71: 51.86 | G71: 1.204900046e-14 | J71: 61700000 | K71: 65.97 | N71: 61700000 | O71: 65.97 | P71: -1.727991707e-15
A72: 66100000 | B72: 48.4 | E72: 66100000 | F72: 48.4 | G72: 3.646335401e-14 | J72: 66100000 | K72: 63.62 | N72: 66100000 | O72: 63.62 | P72: 1.197052179e-14
A73: 70500000 | B73: 45.5 | E73: 70500000 | F73: 45.5 | G73: 1.565130251e-14 | J73: 70500000 | K73: 61.47 | N73: 70500000 | O73: 61.47 | P73: 1.582937563e-14
A74: 75600000 | B74: 42.6 | E74: 75600000 | F74: 42.6 | G74: 1.666024379e-14 | J74: 75600000 | K74: 59.3 | N74: 75600000 | O74: 59.3 | P74: 4.989916192e-15
A75: 81700000 | B75: 39.66 | E75: 81700000 | F75: 39.66 | G75: 1.097546286e-14 | J75: 81700000 | K75: 56.95 | N75: 81700000 | O75: 56.95 | P75: 8.026529221e-15
A76: 87800000 | B76: 37.13 | E76: 87800000 | F76: 37.13 | G76: 5.549165179e-15 | J76: 87800000 | K76: 54.88 | N76: 87800000 | O76: 54.88 | P76: 8.053120379e-15
A77: 93900000 | B77: 34.87 | E77: 93900000 | F77: 34.87 | G77: 1.036456011e-14 | J77: 93900000 | K77: 53.08 | N77: 93900000 | O77: 53.08 | P77: 3.297672949e-15
A78: 100000000 | B78: 32.9 | E78: 100000000 | F78: 32.9 | G78: -2.457824061e-16 | J78: 100000000 | K78: 51.43 | N78: 100000000 | O78: 51.43 | P78: 2.943234317e-15
A79: 107000000 | B79: 30.8 | E79: 107000000 | F79: 30.8 | G79: 1.156008577e-14 | J79: 107000000 | K79: 49.72 | N79: 107000000 | O79: 49.72 | P79: 8.572569981e-15
A80: 116000000 | B80: 28.6 | E80: 116000000 | F80: 28.6 | G80: -3.874326052e-15 | J80: 116000000 | K80: 47.92 | N80: 116000000 | O80: 47.92 | P80: -3.245621545e-15
A81: 124000000 | B81: 26.66 | E81: 124000000 | F81: 26.66 | G81: 4.919122564e-15 | J81: 124000000 | K81: 46.32 | N81: 124000000 | O81: 46.32 | P81: 4.149750339e-15
A82: 132000000 | B82: 24.92 | E82: 132000000 | F82: 24.92 | G82: 2.947835797e-15 | J82: 132000000 | K82: 44.89 | N82: 132000000 | O82: 44.89 | P82: 2.584120189e-15
A83: 142000000 | B83: 23.03 | E83: 142000000 | F83: 23.03 | G83: 2.552493078e-15 | J83: 142000000 | K83: 43.33 | N83: 142000000 | O83: 43.33 | P83: 1.027367049e-15
A84: 153000000 | B84: 21.2 | E84: 153000000 | F84: 21.2 | G84: -7.862594926e-17 | J84: 153000000 | K84: 41.76 | N84: 153000000 | O84: 41.76 | P84: 9.67795062e-16
A85: 164000000 | B85: 19.46 | E85: 164000000 | F85: 19.46 | G85: 2.224820636e-15 | J85: 164000000 | K85: 40.3 | N85: 164000000 | O85: 40.3 | P85: 5.559981574e-16
A86: 175000000 | B86: 17.9 | E86: 175000000 | F86: 17.9 | G86: 1.049632393e-16 | J86: 175000000 | K86: 38.91 | N86: 175000000 | O86: 38.91 | P86: 2.792866885e-16
A87: 187000000 | B87: 16.32 | E87: 187000000 | F87: 16.32 | G87: 2.633979575e-15 | J87: 187000000 | K87: 37.48 | N87: 187000000 | O87: 37.48 | P87: 2.018220898e-15
A88: 202000000 | B88: 14.68 | E88: 202000000 | F88: 14.68 | G88: -6.329637294e-16 | J88: 202000000 | K88: 35.95 | N88: 202000000 | O88: 35.95 | P88: -6.223579183e-16
A89: 216000000 | B89: 13.23 | E89: 216000000 | F89: 13.23 | G89: 2.269545089e-15 | J89: 216000000 | K89: 34.55 | N89: 216000000 | O89: 34.55 | P89: 1.27310327e-15
A90: 231000000 | B90: 11.97 | E90: 231000000 | F90: 11.97 | G90: -3.56236768e-16 | J90: 231000000 | K90: 33.22 | N90: 231000000 | O90: 33.22 | P90: 1.915347445e-16
A91: 248000000 | B91: 10.62 | E91: 248000000 | F91: 10.62 | G91: 9.579640343e-16 | J91: 248000000 | K91: 31.81 | N91: 248000000 | O91: 31.81 | P91: 1.763628512e-16
A92: 267000000 | B92: 9.32 | E92: 267000000 | F92: 9.32 | G92: 1.593098437e-16 | J92: 267000000 | K92: 30.3 | N92: 267000000 | O92: 30.3 | P92: 2.553019799e-16
A93: 286000000 | B93: 8.16 | E93: 286000000 | F93: 8.16 | G93: 7.316663971e-16 | J93: 286000000 | K93: 28.89 | N93: 286000000 | O93: 28.89 | P93: 4.644790905e-16
A94: 305000000 | B94: 7.2 | E94: 305000000 | F94: 7.2 | G94: 2.381242909e-16 | J94: 305000000 | K94: 27.62 | N94: 305000000 | O94: 27.62 | P94: 2.13651464e-16
A95: 327000000 | B95: 6.24 | E95: 327000000 | F95: 6.24 | G95: 3.596299783e-16 | J95: 327000000 | K95: 26.28 | N95: 327000000 | O95: 26.28 | P95: 4.206165163e-16
A96: 353000000 | B96: 5.3 | E96: 353000000 | F96: 5.3 | G96: 1.973804837e-16 | J96: 353000000 | K96: 24.89 | N96: 353000000 | O96: 24.89 | P96: -1.516165715e-17
A97: 378000000 | B97: 4.54 | E97: 378000000 | F97: 4.54 | G97: 2.01595526e-16 | J97: 378000000 | K97: 23.63 | N97: 378000000 | O97: 23.63 | P97: 3.59187615e-16
A98: 404000000 | B98: 3.87 | E98: 404000000 | F98: 3.87 | G98: 8.797537087e-17 | J98: 404000000 | K98: 22.49 | N98: 404000000 | O98: 22.49 | P98: 1.178839085e-16
A99: 433000000 | B99: 3.21 | E99: 433000000 | F99: 3.21 | G99: 1.08444345e-16 | J99: 433000000 | K99: 21.36 | N99: 433000000 | O99: 21.36 | P99: 2.406107485e-16
A100: 466000000 | B100: 2.57 | E100: 466000000 | F100: 2.57 | G100: 1.269607041e-16 | J100: 466000000 | K100: 20.25 | N100: 466000000 | O100: 20.25 | P100: -3.877104623e-17
A101: 500000000 | B101: 2.05 | E101: 500000000 | F101: 2.05 | G101: 1.178686103e-16 | J101: 500000000 | K101: 19.17 | N101: 500000000 | O101: 19.17 | P101: 2.495621182e-16
A102: 534000000 | B102: 1.63 | E102: 534000000 | F102: 1.63 | G102: -7.940400355e-17 | J102: 534000000 | K102: 18.27 | N102: 534000000 | O102: 18.27 | P102: -2.52213713e-17
A103: 572000000 | B103: 1.15 | E103: 572000000 | F103: 1.15 | G103: 1.514425562e-16 | J103: 572000000 | K103: 17.33 | N103: 572000000 | O103: 17.33 | P103: 1.460326902e-16
A104: 617000000 | B104: 0.74 | E104: 617000000 | F104: 0.74 | G104: -2.220678153e-17 | J104: 617000000 | K104: 16.4 | N104: 617000000 | O104: 16.4 | P104: 2.528973704e-17
A105: 661000000 | B105: 0.37 | E105: 661000000 | F105: 0.37 | G105: 3.068212042e-17 | J105: 661000000 | K105: 15.59 | N105: 661000000 | O105: 15.59 | P105: 5.619114302e-17
A106: 705000000 | B106: 0.05 | E106: 705000000 | F106: 0.05 | G106: 5.443697755e-17 | J106: 705000000 | K106: 14.87 | N106: 705000000 | O106: 14.87 | P106: 2.887131072e-17
A107: 756000000 | B107: -0.22 | E107: 756000000 | F107: -0.22 | G107: 3.502327862e-18 | J107: 756000000 | K107: 14.13 | N107: 756000000 | O107: 14.13 | P107: 6.205951615e-17
A108: 817000000 | B108: -0.49 | E108: 817000000 | F108: -0.49 | G108: 2.699215634e-17 | J108: 817000000 | K108: 13.41 | N108: 817000000 | O108: 13.41 | P108: 1.418660549e-17
A109: 878000000 | B109: -0.69 | E109: 878000000 | F109: -0.69 | G109: 1.401930395e-18 | J109: 878000000 | K109: 12.79 | N109: 878000000 | O109: 12.79 | P109: 4.24410385e-17
A110: 939000000 | B110: -0.87 | E110: 939000000 | F110: -0.87 | G110: -3.504825986e-19 | J110: 939000000 | K110: 12.3 | N110: 939000000 | O110: 12.3 | P110: 2.567031011e-17
A111: 1000000000 | B111: -1.05 | E111: 1000000000 | F111: -1.05 | G111: 0 | J111: 1000000000 | K111: 11.9 | N111: 1000000000 | O111: 11.9 | P111: 0
